Workbook

Sheet data
A1: month | B1: Manufacturing (thousands)EC MSA | C1: m_indx | D1: Retail Trade Employment (thousands) EC | E1: Health Services and Education Employment (thousands) EC | F1: Natural Resource, Mining, & Construction Employment (thousands) EC | G1: Leisure & Hospitality Employment (thousands) EC | H1: Total Non-Farm Employment (thousands) EC | I1: Manufacturing Employment (thousands) WI | J1: wi_m_indx | K1: Retail Trade Employment (thousands) WI | L1: Health Services & Education (thousands) WI | M1: Construction (thousands) WI | N1: Lesiure & Hospitality (thousands) WI | O1: Total Non-Farm (thousands) WI | P1: Manufacturing (thousands) US | Q1: us_m_indx | R1: Retail Trade (thousands) US | S1: Health Services & Education (thousands) US | T1: Constructions (thousands) US | U1: Leisure & Hospitality (thousands) US | V1: Total Non-Farm (thousands) US
A2: 1993-01-01 | B2: 9.8 | D2: 9.8 | E2: 8.1 | F2: 1.5 | G2: 5.6 | H2: 58.3 | I2: 513.5 | K2: 277.2 | L2: 262.4 | M2: 81.2 | N2: 191.6 | O2: 2324.9 | P2: 16661 | Q2: =(P2/$P$2)*100 -> 100 | R2: 12846.1 | S2: 12032 | T2: 4233 | U2: 9026 | V2: 108047
A3: 1993-02-01 | B3: 9.7 | D3: 9.6 | E3: 8.3 | F3: 1.5 | G3: 5.8 | H3: 59.7 | I3: 514.8 | K3: 272.3 | L3: 265.3 | M3: 79.7 | N3: 192.7 | O3: 2341.8 | P3: 16671 | Q3: =(P3/$P$2)*100 -> 100.0600204 | R3: 12698.7 | S3: 12199 | T3: 4247 | U3: 9145 | V3: 108650
A4: 1993-03-01 | B4: 9.7 | D4: 9.8 | E4: 8.3 | F4: 1.5 | G4: 5.8 | H4: 59.8 | I4: 518 | K4: 272.7 | L4: 265.6 | M4: 80.9 | N4: 195.7 | O4: 2355.4 | P4: 16681 | Q4: =(P4/$P$2)*100 -> 100.1200408 | R4: 12651.2 | S4: 12240 | T4: 4287 | U4: 9267 | V4: 109083
A5: 1993-04-01 | B5: 9.7 | D5: 10 | E5: 8.3 | F5: 1.8 | G5: 6 | H5: 60.8 | I5: 519.2 | K5: 274.6 | L5: 267.2 | M5: 86.2 | N5: 200.4 | O5: 2377.4 | P5: 16684 | Q5: 100.1380469 | R5: 12742.1 | S5: 12294 | T5: 4542 | U5: 9599 | V5: 110087
A6: 1993-05-01 | B6: 9.9 | D6: 10.3 | E6: 8.4 | F6: 2.2 | G6: 6.2 | H6: 61.8 | I6: 522.6 | K6: 278.6 | L6: 267.4 | M6: 96.3 | N6: 213.5 | O6: 2416.6 | P6: 16733 | Q6: 100.4321469 | R6: 12861.2 | S6: 12273 | T6: 4816 | U6: 9899 | V6: 111050
A7: 1993-06-01 | B7: 10 | D7: 10.3 | E7: 8.3 | F7: 2.4 | G7: 6.3 | H7: 60.9 | I7: 531.9 | K7: 282.3 | L7: 267 | M7: 101.3 | N7: 223.7 | O7: 2443.4 | P7: 16834 | Q7: 101.038353 | R7: 12971.8 | S7: 12153 | T7: 4968 | U7: 10189 | V7: 111640
A8: 1993-07-01 | B8: 10.1 | D8: 10.3 | E8: 8.3 | F8: 2.6 | G8: 6.3 | H8: 61.5 | I8: 532.2 | K8: 281.3 | L8: 266.8 | M8: 105.5 | N8: 224.7 | O8: 2424.8 | P8: 16726 | Q8: 100.3901326 | R8: 13006 | S8: 12139 | T8: 5085 | U8: 10216 | V8: 110771
A9: 1993-08-01 | B9: 10.3 | D9: 10.4 | E9: 8.5 | F9: 2.5 | G9: 6.5 | H9: 62 | I9: 535.4 | K9: 282.9 | L9: 266.9 | M9: 105.2 | N9: 228.1 | O9: 2431.5 | P9: 16853 | Q9: 101.1523918 | R9: 13044.7 | S9: 12128 | T9: 5138 | U9: 10278 | V9: 110880
A10: 1993-09-01 | B10: 10.2 | D10: 10.3 | E10: 8.5 | F10: 2.5 | G10: 6.6 | H10: 62.7 | I10: 533.1 | K10: 283.5 | L10: 269.3 | M10: 104 | N10: 218.4 | O10: 2450.4 | P10: 16891 | Q10: 101.3804694 | R10: 13045.3 | S10: 12366 | T10: 5094 | U10: 10066 | V10: 111868
A11: 1993-10-01 | B11: 10.1 | D11: 10.5 | E11: 8.6 | F11: 2.6 | G11: 6.5 | H11: 63.6 | I11: 531.9 | K11: 287.5 | L11: 271.3 | M11: 105.3 | N11: 210.9 | O11: 2461.3 | P11: 16869 | Q11: 101.2484245 | R11: 13171.9 | S11: 12555 | T11: 5105 | U11: 9775 | V11: 112533
A12: 1993-11-01 | B12: 10.2 | D12: 10.8 | E12: 8.7 | F12: 2.3 | G12: 6.4 | H12: 64.3 | I12: 530.3 | K12: 296 | L12: 272.3 | M12: 102.4 | N12: 204.6 | O12: 2461.4 | P12: 16856 | Q12: 101.1703979 | R12: 13454.4 | S12: 12631 | T12: 5012 | U12: 9641 | V12: 112878
A13: 1993-12-01 | B13: 10.2 | D13: 10.9 | E13: 8.7 | F13: 2 | G13: 6.4 | H13: 63.7 | I13: 530.9 | K13: 300.1 | L13: 272.4 | M13: 96.5 | N13: 204.9 | O13: 2463.2 | P13: 16824 | Q13: 100.9783326 | R13: 13752.1 | S13: 12631 | T13: 4826 | U13: 9686 | V13: 113025
A14: 1994-01-01 | B14: 9.8 | C14: =(B14/$B$14)*100 -> 100 | D14: 10.2 | E14: 8.6 | F14: 1.7 | G14: 6 | H14: 60.9 | I14: 523.1 | J14: =(I14/$I$14)*100 -> 100 | K14: 282.9 | L14: 267.9 | M14: 84.3 | N14: 195.6 | O14: 2383.8 | P14: 16722 | Q14: 100.3661245 | R14: 13149.5 | S14: 12494 | T14: 4500 | U14: 9388 | V14: 110777
A15: 1994-02-01 | B15: 9.9 | C15: =(B15/$B$14)*100 -> 101.0204082 | D15: 10.1 | E15: 8.6 | F15: 1.6 | G15: 6.2 | H15: 62 | I15: 523.7 | J15: =(I15/$I$14)*100 -> 100.1147008 | K15: 277.6 | L15: 270.4 | M15: 81.3 | N15: 196.8 | O15: 2397.7 | P15: 16744 | Q15: 100.4981694 | R15: 13011.7 | S15: 12662 | T15: 4454 | U15: 9478 | V15: 111357
A16: 1994-03-01 | B16: 10.1 | C16: 103.0612245 | D16: 10.2 | E16: 8.6 | F16: 1.7 | G16: 6.2 | H16: 62.4 | I16: 527.6 | J16: 100.8602562 | K16: 279.1 | L16: 271.3 | M16: 86 | N16: 199.4 | O16: 2421.7 | P16: 16799 | Q16: 100.8282816 | R16: 13048 | S16: 12743 | T16: 4602 | U16: 9706 | V16: 112332
A17: 1994-04-01 | B17: 10.3 | C17: 105.1020408 | D17: 10.3 | E17: 8.5 | F17: 2 | G17: 6.4 | H17: 63.7 | I17: 534.3 | J17: 102.141082 | K17: 281.6 | L17: 272.4 | M17: 94.7 | N17: 204.9 | O17: 2456.1 | P17: 16855 | Q17: 101.1643959 | R17: 13162.2 | S17: 12796 | T17: 4905 | U17: 9986 | V17: 113412
A18: 1994-05-01 | B18: 10.4 | C18: 106.122449 | D18: 10.6 | E18: 8.5 | F18: 2.5 | G18: 6.6 | H18: 64.8 | I18: 538.5 | J18: 102.9439878 | K18: 285.8 | L18: 273 | M18: 103 | N18: 218.3 | O18: 2487.2 | P18: 16932 | Q18: 101.626553 | R18: 13291.7 | S18: 12771 | T18: 5149 | U18: 10274 | V18: 114423
A19: 1994-06-01 | B19: 10.6 | C19: 108.1632653 | D19: 10.7 | E19: 8.6 | F19: 2.7 | G19: 6.5 | H19: 64 | I19: 552.6 | J19: 105.6394571 | K19: 290 | L19: 273.2 | M19: 108.8 | N19: 228.9 | O19: 2523.2 | P19: 17103 | Q19: 102.652902 | R19: 13425.4 | S19: 12654 | T19: 5316 | U19: 10603 | V19: 115211
A20: 1994-07-01 | B20: 10.8 | C20: 110.2040816 | D20: 11 | E20: 8.6 | F20: 2.9 | G20: 6.7 | H20: 64.7 | I20: 556.9 | J20: 106.4614796 | K20: 290.9 | L20: 272.2 | M20: 111.1 | N20: 233.3 | O20: 2512.9 | P20: 16991 | Q20: 101.9806734 | R20: 13482.6 | S20: 12629 | T20: 5430 | U20: 10619 | V20: 114265
A21: 1994-08-01 | B21: 10.7 | C21: 109.1836735 | D21: 11 | E21: 8.5 | F21: 2.8 | G21: 6.6 | H21: 63.4 | I21: 560 | J21: 107.0541006 | K21: 293.6 | L21: 272.1 | M21: 110.8 | N21: 233.3 | O21: 2512.5 | P21: 17183 | Q21: 103.1330652 | R21: 13546.3 | S21: 12624 | T21: 5469 | U21: 10657 | V21: 114573
A22: 1994-09-01 | B22: 10.6 | C22: 108.1632653 | D22: 11 | E22: 8.6 | F22: 2.8 | G22: 6.8 | H22: 65.8 | I22: 559.9 | J22: 107.0349838 | K22: 296.4 | L22: 274.6 | M22: 110.3 | N22: 226.2 | O22: 2543.7 | P22: 17222 | Q22: 103.3671448 | R22: 13578.2 | S22: 12884 | T22: 5444 | U22: 10413 | V22: 115631
A23: 1994-10-01 | B23: 10.5 | C23: 107.1428571 | D23: 11.3 | E23: 8.6 | F23: 2.9 | G23: 6.5 | H23: 65.9 | I23: 557.3 | J23: 106.5379469 | K23: 301 | L23: 274.9 | M23: 109.1 | N23: 215 | O23: 2541.1 | P23: 17226 | Q23: 103.391153 | R23: 13722.9 | S23: 13085 | T23: 5412 | U23: 10087 | V23: 116256
A24: 1994-11-01 | B24: 10.5 | C24: 107.1428571 | D24: 11.7 | E24: 8.6 | F24: 2.8 | G24: 6.6 | H24: 66.7 | I24: 559.2 | J24: 106.9011661 | K24: 311.5 | L24: 277.6 | M24: 106.3 | N24: 208.8 | O24: 2556 | P24: 17238 | Q24: 103.4631775 | R24: 14093.5 | S24: 13166 | T24: 5336 | U24: 9972 | V24: 116863
A25: 1994-12-01 | B25: 10.4 | C25: 106.122449 | D25: 11.8 | E25: 8.7 | F25: 2.5 | G25: 6.8 | H25: 66.2 | I25: 560.3 | J25: 107.111451 | K25: 316.6 | L25: 277.9 | M25: 99.6 | N25: 209.5 | O25: 2553 | P25: 17230 | Q25: 103.4151612 | R25: 14377.2 | S25: 13171 | T25: 5124 | U25: 10013 | V25: 116900
A26: 1995-01-01 | B26: 10.1 | C26: 103.0612245 | D26: 11.3 | E26: 8.7 | F26: 2.1 | G26: 6.4 | H26: 63.9 | I26: 556.5 | J26: 106.3850124 | K26: 294.8 | L26: 273 | M26: 87.7 | N26: 198.2 | O26: 2476.9 | P26: 17133 | Q26: 102.8329632 | R26: 13771.8 | S26: 13016 | T26: 4788 | U26: 9751 | V26: 114591
A27: 1995-02-01 | B27: 10.1 | C27: 103.0612245 | D27: 11.3 | E27: 8.8 | F27: 1.9 | G27: 6.6 | H27: 65 | I27: 557.7 | J27: 106.6144141 | K27: 290 | L27: 276 | M27: 85 | N27: 200.6 | O27: 2488.3 | P27: 17158 | Q27: 102.9830142 | R27: 13576.3 | S27: 13234 | T27: 4716 | U27: 9879 | V27: 115249
A28: 1995-03-01 | B28: 10.2 | C28: 104.0816327 | D28: 11.2 | E28: 8.8 | F28: 2 | G28: 6.7 | H28: 65.2 | I28: 556.9 | J28: 106.4614796 | K28: 291.7 | L28: 278 | M28: 88.8 | N28: 205.1 | O28: 2512.9 | P28: 17177 | Q28: 103.097053 | R28: 13535.7 | S28: 13304 | T28: 4857 | U28: 10110 | V28: 116005
A29: 1995-04-01 | B29: 10.4 | C29: 106.122449 | D29: 11.4 | E29: 8.9 | F29: 2.3 | G29: 6.8 | H29: 66.5 | I29: 561.3 | J29: 107.302619 | K29: 292.4 | L29: 277.2 | M29: 95.5 | N29: 210.1 | O29: 2533.6 | P29: 17206 | Q29: 103.2711122 | R29: 13650.5 | S29: 13327 | T29: 5097 | U29: 10358 | V29: 116838
A30: 1995-05-01 | B30: 10.4 | C30: 106.122449 | D30: 11.5 | E30: 9 | F30: 2.8 | G30: 7 | H30: 67.3 | I30: 562.7 | J30: 107.5702543 | K30: 296.3 | L30: 278.4 | M30: 103.4 | N30: 221.8 | O30: 2559.6 | P30: 17234 | Q30: 103.4391693 | R30: 13754.1 | S30: 13282 | T30: 5283 | U30: 10683 | V30: 117562
A31: 1995-06-01 | B31: 10.4 | C31: 106.122449 | D31: 11.6 | E31: 9 | F31: 3 | G31: 6.7 | H31: 66.5 | I31: 575.2 | J31: 109.9598547 | K31: 300.4 | L31: 279.3 | M31: 110.5 | N31: 235.1 | O31: 2601.1 | P31: 17342 | Q31: 104.0873897 | R31: 13870.9 | S31: 13135 | T31: 5472 | U31: 11056 | V31: 118277
A32: 1995-07-01 | B32: 10.6 | C32: 108.1632653 | D32: 11.6 | E32: 9 | F32: 3.1 | G32: 7.2 | H32: 66.4 | I32: 574.8 | J32: 109.8833875 | K32: 298.3 | L32: 278.3 | M32: 111.8 | N32: 236.5 | O32: 2571.5 | P32: 17177 | Q32: 103.097053 | R32: 13874.7 | S32: 13053 | T32: 5571 | U32: 11076 | V32: 117044
A33: 1995-08-01 | B33: 10.8 | C33: 110.2040816 | D33: 11.6 | E33: 9.2 | F33: 3.2 | G33: 6.9 | H33: 66.8 | I33: 579.8 | J33: 110.8392277 | K33: 301.7 | L33: 279.4 | M33: 111.4 | N33: 239.2 | O33: 2579.6 | P33: 17335 | Q33: 104.0453754 | R33: 13904.8 | S33: 13053 | T33: 5615 | U33: 11106 | V33: 117307
A34: 1995-09-01 | B34: 10.7 | C34: 109.1836735 | D34: 11.6 | E34: 9.1 | F34: 3 | G34: 6.8 | H34: 67.4 | I34: 574.6 | J34: 109.8451539 | K34: 302.7 | L34: 282.8 | M34: 110.3 | N34: 227.7 | O34: 2596.5 | P34: 17341 | Q34: 104.0813877 | R34: 13890.6 | S34: 13325 | T34: 5589 | U34: 10835 | V34: 118221
A35: 1995-10-01 | B35: 10.5 | C35: 107.1428571 | D35: 11.9 | E35: 9.2 | F35: 3.1 | G35: 6.7 | H35: 68.6 | I35: 568.3 | J35: 108.6407953 | K35: 307.5 | L35: 285.5 | M35: 109.2 | N35: 218.5 | O35: 2594.6 | P35: 17290 | Q35: 103.7752836 | R35: 14002.5 | S35: 13532 | T35: 5584 | U35: 10503 | V35: 118822
A36: 1995-11-01 | B36: 10.6 | C36: 108.1632653 | D36: 12.1 | E36: 9.3 | F36: 2.8 | G36: 6.8 | H36: 68.6 | I36: 566.5 | J36: 108.2966928 | K36: 316 | L36: 288 | M36: 106.1 | N36: 211.3 | O36: 2594.1 | P36: 17248 | Q36: 103.5231979 | R36: 14343.6 | S36: 13605 | T36: 5468 | U36: 10322 | V36: 119060
A37: 1995-12-01 | B37: 10.6 | C37: 108.1632653 | D37: 12.3 | E37: 9.3 | F37: 2.5 | G37: 6.7 | H37: 68.4 | I37: 565.2 | J37: 108.0481743 | K37: 319.9 | L37: 289.1 | M37: 100.1 | N37: 211 | O37: 2594.3 | P37: 17251 | Q37: 103.541204 | R37: 14584.9 | S37: 13599 | T37: 5249 | U37: 10333 | V37: 119058
A38: 1996-01-01 | B38: 10.5 | C38: 107.1428571 | D38: 11.9 | E38: 9.1 | F38: 2 | G38: 6.1 | H38: 64.7 | I38: 555.9 | J38: 106.2703116 | K38: 303.9 | L38: 287.8 | M38: 90.6 | N38: 202.7 | O38: 2523.8 | P38: 17083 | Q38: 102.5328612 | R38: 13924.2 | S38: 13391 | T38: 4907 | U38: 9994 | V38: 116358
A39: 1996-02-01 | B39: 10.5 | C39: 107.1428571 | D39: 11.7 | E39: 9.2 | F39: 2 | G39: 6.3 | H39: 66.1 | I39: 554.2 | J39: 105.9453259 | K39: 295.2 | L39: 290.9 | M39: 88 | N39: 203.9 | O39: 2520 | P39: 17130 | Q39: 102.8149571 | R39: 13727.3 | S39: 13625 | T39: 4943 | U39: 10139 | V39: 117296
A40: 1996-03-01 | B40: 10.5 | C40: 107.1428571 | D40: 11.9 | E40: 9.3 | F40: 2 | G40: 6.4 | H40: 66.6 | I40: 556.3 | J40: 106.3467788 | K40: 296.5 | L40: 293.2 | M40: 91.5 | N40: 207.3 | O40: 2545.7 | P40: 17113 | Q40: 102.7129224 | R40: 13744.6 | S40: 13696 | T40: 5066 | U40: 10381 | V40: 118099
A41: 1996-04-01 | B41: 11.2 | C41: 114.2857143 | D41: 11.6 | E41: 9.4 | F41: 2.5 | G41: 6.6 | H41: 68.5 | I41: 563.4 | J41: 107.7040719 | K41: 295.7 | L41: 292.9 | M41: 98.4 | N41: 212.9 | O41: 2564 | P41: 17137 | Q41: 102.8569714 | R41: 13808.2 | S41: 13724 | T41: 5322 | U41: 10638 | V41: 118936
A42: 1996-05-01 | B42: 11 | C42: 112.244898 | D42: 12 | E42: 9.2 | F42: 2.9 | G42: 6.7 | H42: 69 | I42: 566.3 | J42: 108.2584592 | K42: 301.3 | L42: 293.7 | M42: 108.8 | N42: 227.1 | O42: 2604.7 | P42: 17210 | Q42: 103.2951203 | R42: 13990.1 | S42: 13683 | T42: 5561 | U42: 10999 | V42: 120063
A43: 1996-06-01 | B43: 11.3 | C43: 115.3061224 | D43: 12 | E43: 9.3 | F43: 3.3 | G43: 6.6 | H43: 68.8 | I43: 576.1 | J43: 110.1319059 | K43: 304.4 | L43: 294 | M43: 115.6 | N43: 237.9 | O43: 2638.6 | P43: 17323 | Q43: 103.9733509 | R43: 14103.9 | S43: 13521 | T43: 5753 | U43: 11344 | V43: 120726
A44: 1996-07-01 | B44: 11.2 | C44: 114.2857143 | D44: 12 | E44: 9.4 | F44: 3.3 | G44: 6.6 | H44: 68.2 | I44: 573.8 | J44: 109.6922195 | K44: 303.1 | L44: 292.9 | M44: 118.8 | N44: 239.9 | O44: 2611.4 | P44: 17181 | Q44: 103.1210612 | R44: 14132.5 | S44: 13469 | T44: 5872 | U44: 11363 | V44: 119689
A45: 1996-08-01 | B45: 11.3 | C45: 115.3061224 | D45: 12.3 | E45: 9.6 | F45: 3.4 | G45: 6.8 | H45: 68.9 | I45: 580.8 | J45: 111.0303957 | K45: 305.6 | L45: 292.4 | M45: 120.1 | N45: 243.1 | O45: 2627.4 | P45: 17362 | Q45: 104.2074305 | R45: 14163.8 | S45: 13440 | T45: 5913 | U45: 11395 | V45: 119981
A46: 1996-09-01 | B46: 11.2 | C46: 114.2857143 | D46: 11.9 | E46: 9.7 | F46: 3.3 | G46: 6.9 | H46: 70.5 | I46: 574.4 | J46: 109.8069203 | K46: 305.2 | L46: 295 | M46: 117.9 | N46: 231.7 | O46: 2635.7 | P46: 17348 | Q46: 104.123402 | R46: 14150.1 | S46: 13694 | T46: 5872 | U46: 11055 | V46: 120724
A47: 1996-10-01 | B47: 11.3 | C47: 115.3061224 | D47: 12.1 | E47: 9.6 | F47: 3.3 | G47: 6.9 | H47: 71.2 | I47: 571.5 | J47: 109.252533 | K47: 311.1 | L47: 298.2 | M47: 117.2 | N47: 221.4 | O47: 2642.5 | P47: 17333 | Q47: 104.0333713 | R47: 14324.4 | S47: 13937 | T47: 5867 | U47: 10782 | V47: 121441
A48: 1996-11-01 | B48: 11.3 | C48: 115.3061224 | D48: 12.4 | E48: 9.6 | F48: 3.2 | G48: 6.8 | H48: 71.3 | I48: 570 | J48: 108.9657809 | K48: 321.7 | L48: 299.8 | M48: 114.3 | N48: 214.3 | O48: 2648.5 | P48: 17312 | Q48: 103.9073285 | R48: 14688.4 | S48: 14020 | T48: 5775 | U48: 10603 | V48: 121899
A49: 1996-12-01 | B49: 11.3 | C49: 115.3061224 | D49: 12.5 | E49: 9.7 | F49: 2.6 | G49: 6.7 | H49: 70.8 | I49: 568.8 | J49: 108.7363793 | K49: 326.3 | L49: 300.3 | M49: 107.8 | N49: 215.3 | O49: 2644.4 | P49: 17308 | Q49: 103.8833203 | R49: 14952.7 | S49: 13990 | T49: 5576 | U49: 10625 | V49: 121875
A50: 1997-01-01 | B50: 11.2 | C50: 114.2857143 | D50: 12 | E50: 9.7 | F50: 2.1 | G50: 6.2 | H50: 67.5 | I50: 559.9 | J50: 107.0349838 | K50: 306.2 | L50: 296 | M50: 95.9 | N50: 204.8 | O50: 2559.9 | P50: 17183 | Q50: 103.1330652 | R50: 14223.5 | S50: 13822 | T50: 5232 | U50: 10275 | V50: 119331
A51: 1997-02-01 | B51: 11.4 | C51: 116.3265306 | D51: 11.8 | E51: 9.7 | F51: 2 | G51: 6.5 | H51: 69.4 | I51: 560.5 | J51: 107.1496846 | K51: 299.5 | L51: 298.8 | M51: 94.1 | N51: 206.1 | O51: 2569.5 | P51: 17223 | Q51: 103.3731469 | R51: 14019.6 | S51: 14028 | T51: 5260 | U51: 10428 | V51: 120191
A52: 1997-03-01 | B52: 11.6 | C52: 118.3673469 | D52: 12.1 | E52: 9.7 | F52: 2.1 | G52: 6.6 | H52: 70.2 | I52: 563 | J52: 107.6276047 | K52: 300.7 | L52: 299.2 | M52: 96 | N52: 208.5 | O52: 2584.6 | P52: 17268 | Q52: 103.6432387 | R52: 14036.3 | S52: 14093 | T52: 5376 | U52: 10645 | V52: 121073
A53: 1997-04-01 | B53: 11.8 | C53: 120.4081633 | D53: 12 | E53: 9.7 | F53: 2.6 | G53: 6.9 | H53: 71.4 | I53: 570.9 | J53: 109.1378322 | K53: 300.2 | L53: 299.5 | M53: 104.2 | N53: 216.9 | O53: 2617.7 | P53: 17288 | Q53: 103.7632795 | R53: 14115.5 | S53: 14139 | T53: 5614 | U53: 10899 | V53: 122047
A54: 1997-05-01 | B54: 12 | C54: 122.4489796 | D54: 12.2 | E54: 9.7 | F54: 3.1 | G54: 7.1 | H54: 72.4 | I54: 577.9 | J54: 110.4760084 | K54: 305.4 | L54: 300.5 | M54: 114.3 | N54: 231.6 | O54: 2659.6 | P54: 17356 | Q54: 104.1714183 | R54: 14238.2 | S54: 14093 | T54: 5855 | U54: 11267 | V54: 123125
A55: 1997-06-01 | B55: 12.2 | C55: 124.4897959 | D55: 12.2 | E55: 9.7 | F55: 3.5 | G55: 6.9 | H55: 71.8 | I55: 588.9 | J55: 112.5788568 | K55: 309.3 | L55: 301.1 | M55: 120.5 | N55: 241.9 | O55: 2696.1 | P55: 17485 | Q55: 104.9456815 | R55: 14335.8 | S55: 13912 | T55: 6017 | U55: 11602 | V55: 123772
A56: 1997-07-01 | B56: 12.3 | C56: 125.5102041 | D56: 12.1 | E56: 9.7 | F56: 3.5 | G56: 7 | H56: 71.6 | I56: 588 | J56: 112.4068056 | K56: 309.6 | L56: 301.5 | M56: 123.6 | N56: 245.3 | O56: 2671.4 | P56: 17352 | Q56: 104.1474101 | R56: 14351 | S56: 13870 | T56: 6137 | U56: 11600 | V56: 122786
A57: 1997-08-01 | B57: 12.5 | C57: 127.5510204 | D57: 12 | E57: 9.8 | F57: 3.5 | G57: 6.9 | H57: 71.6 | I57: 591.7 | J57: 113.1141273 | K57: 313 | L57: 301.3 | M57: 123.1 | N57: 247 | O57: 2679.6 | P57: 17553 | Q57: 105.3538203 | R57: 14388.3 | S57: 13832 | T57: 6172 | U57: 11615 | V57: 122853
A58: 1997-09-01 | B58: 12.5 | C58: 127.5510204 | D58: 11.7 | E58: 9.8 | F58: 3.5 | G58: 6.8 | H58: 72.8 | I58: 588.2 | J58: 112.4450392 | K58: 312.5 | L58: 304.3 | M58: 120.6 | N58: 236.1 | O58: 2695.6 | P58: 17550 | Q58: 105.3358142 | R58: 14355.9 | S58: 14104 | T58: 6127 | U58: 11299 | V58: 123857
A59: 1997-10-01 | B59: 12.4 | C59: 126.5306122 | D59: 12.1 | E59: 9.9 | F59: 3.4 | G59: 7 | H59: 73.8 | I59: 586.2 | J59: 112.0627031 | K59: 317 | L59: 307.1 | M59: 119.4 | N59: 228.1 | O59: 2708.4 | P59: 17563 | Q59: 105.4138407 | R59: 14529.3 | S59: 14347 | T59: 6117 | U59: 10984 | V59: 124760
A60: 1997-11-01 | B60: 12.5 | C60: 127.5510204 | D60: 12.4 | E60: 9.9 | F60: 3.1 | G60: 6.9 | H60: 73.8 | I60: 586.5 | J60: 112.1200535 | K60: 326.9 | L60: 308.9 | M60: 116.2 | N60: 220.1 | O60: 2711.7 | P60: 17597 | Q60: 105.6179101 | R60: 14900.5 | S60: 14412 | T60: 6013 | U60: 10793 | V60: 125153
A61: 1997-12-01 | B61: 12.6 | C61: 128.5714286 | D61: 12.5 | E61: 10.2 | F61: 2.7 | G61: 6.8 | H61: 73.4 | I61: 588.5 | J61: 112.5023896 | K61: 333.2 | L61: 309.7 | M61: 110.4 | N61: 220.5 | O61: 2715.3 | P61: 17613 | Q61: 105.7139427 | R61: 15172.9 | S61: 14394 | T61: 5838 | U61: 10808 | V61: 125289
A62: 1998-01-01 | B62: 12.7 | C62: 129.5918367 | D62: 11.7 | E62: 10.2 | F62: 2.1 | G62: 6.2 | H62: 69.6 | I62: 583.2 | J62: 111.489199 | K62: 308.6 | L62: 304.8 | M62: 96.8 | N62: 207.5 | O62: 2625.2 | P62: 17511 | Q62: 105.1017346 | R62: 14451.9 | S62: 14195 | T62: 5544 | U62: 10445 | V62: 122736
A63: 1998-02-01 | B63: 12.7 | C63: 129.5918367 | D63: 11.7 | E63: 10.2 | F63: 2.1 | G63: 6.4 | H63: 71.7 | I63: 582.9 | J63: 111.4318486 | K63: 303.4 | L63: 308.1 | M63: 96 | N63: 210 | O63: 2639.2 | P63: 17536 | Q63: 105.2517856 | R63: 14239.5 | S63: 14404 | T63: 5542 | U63: 10595 | V63: 123508
A64: 1998-03-01 | B64: 12.8 | C64: 130.6122449 | D64: 11.8 | E64: 10.2 | F64: 2.2 | G64: 6.5 | H64: 72 | I64: 584.9 | J64: 111.8141847 | K64: 304.8 | L64: 309.9 | M64: 97.4 | N64: 210.5 | O64: 2651.8 | P64: 17569 | Q64: 105.449853 | R64: 14222.5 | S64: 14461 | T64: 5602 | U64: 10801 | V64: 124227
A65: 1998-04-01 | B65: 13 | C65: 132.6530612 | D65: 12.1 | E65: 10.2 | F65: 2.9 | G65: 6.8 | H65: 73.7 | I65: 589.4 | J65: 112.6744408 | K65: 304.8 | L65: 311.9 | M65: 109.7 | N65: 219.6 | O65: 2691.8 | P65: 17580 | Q65: 105.5158754 | R65: 14318.2 | S65: 14496 | T65: 5919 | U65: 11087 | V65: 125265
A66: 1998-05-01 | B66: 13 | C66: 132.6530612 | D66: 12.3 | E66: 10.3 | F66: 3.4 | G66: 7 | H66: 75 | I66: 592.1 | J66: 113.1905945 | K66: 309.9 | L66: 311.8 | M66: 119.2 | N66: 233.8 | O66: 2726.7 | P66: 17607 | Q66: 105.6779305 | R66: 14468.2 | S66: 14439 | T66: 6147 | U66: 11455 | V66: 126345
A67: 1998-06-01 | B67: 13.2 | C67: 134.6938776 | D67: 12.3 | E67: 10.3 | F67: 3.6 | G67: 6.9 | H67: 74.5 | I67: 602.4 | J67: 115.1596253 | K67: 314.1 | L67: 312.9 | M67: 124.7 | N67: 244.6 | O67: 2760.1 | P67: 17709 | Q67: 106.2901386 | R67: 14565.3 | S67: 14267 | T67: 6356 | U67: 11792 | V67: 127005
A68: 1998-07-01 | B68: 13.4 | C68: 136.7346939 | D68: 12.2 | E68: 10.2 | F68: 4 | G68: 7.1 | H68: 74.2 | I68: 597 | J68: 114.1273179 | K68: 312.7 | L68: 309.1 | M68: 129.6 | N68: 247.7 | O68: 2731.5 | P68: 17404 | Q68: =(P68/$P$2)*100 -> 104.4595162 | R68: 14598.4 | S68: 14232 | T68: 6496 | U68: 11838 | V68: 125931
A69: 1998-08-01 | B69: 13.5 | C69: 137.755102 | D69: 12.2 | E69: 10.3 | F69: 4 | G69: 7.1 | H69: 74.2 | I69: 603.6 | J69: 115.389027 | K69: 314.5 | L69: 310.1 | M69: 128.9 | N69: 249 | O69: 2738.5 | P69: 17640 | Q69: 105.8759978 | R69: 14613.4 | S69: 14153 | T69: 6541 | U69: 11844 | V69: 126170
A70: 1998-09-01 | B70: 13.5 | C70: 137.755102 | D70: 12.2 | E70: 10.2 | F70: 3.9 | G70: 6.8 | H70: 75.2 | I70: 597.4 | J70: 114.2037851 | K70: 314.7 | L70: 313.8 | M70: 125.8 | N70: 237.7 | O70: 2746.5 | P70: 17632 | Q70: 105.8279815 | R70: 14597.7 | S70: 14449 | T70: 6468 | U70: 11550 | V70: 126977
A71: 1998-10-01 | B71: 13.6 | C71: 138.7755102 | D71: 12.5 | E71: 10.4 | F71: 3.7 | G71: 6.8 | H71: 76.3 | I71: 595 | J71: 113.7449818 | K71: 323.8 | L71: 317.6 | M71: 124.3 | N71: 227.1 | O71: 2760.8 | P71: 17551 | Q71: 105.3418162 | R71: 14741.8 | S71: 14712 | T71: 6490 | U71: 11223 | V71: 127754
A72: 1998-11-01 | B72: 13.7 | C72: 139.7959184 | D72: 12.8 | E72: 10.4 | F72: 3.5 | G72: 6.6 | H72: 76 | I72: 594.4 | J72: 113.630281 | K72: 334.1 | L72: 320.3 | M72: 121.6 | N72: 218.7 | O72: 2768.4 | P72: 17502 | Q72: 105.0477162 | R72: 15110.6 | S72: 14785 | T72: 6410 | U72: 11052 | V72: 128155
A73: 1998-12-01 | B73: 13.7 | C73: 139.7959184 | D73: 12.8 | E73: 10.4 | F73: 3.2 | G73: 6.6 | H73: 75.8 | I73: 595.8 | J73: 113.8979163 | K73: 341.4 | L73: 321.8 | M73: 118.2 | N73: 219.2 | O73: 2775.8 | P73: 17475 | Q73: 104.8856611 | R73: 15384.5 | S73: 14763 | T73: 6277 | U73: 11096 | V73: 128322
A74: 1999-01-01 | B74: 13.5 | C74: 137.755102 | D74: 12.1 | E74: 10.5 | F74: 2.7 | G74: 6.5 | H74: 72.8 | I74: 586.5 | J74: 112.1200535 | K74: 316.3 | L74: 319.5 | M74: 103.4 | N74: 210.2 | O74: 2686.4 | P74: 17324 | Q74: 103.979353 | R74: 14701.3 | S74: 14547 | T74: 5912 | U74: 10720 | V74: 125570
A75: 1999-02-01 | B75: 13.8 | C75: 140.8163265 | D75: 12.1 | E75: 10.5 | F75: 2.5 | G75: 6.6 | H75: 74.5 | I75: 587 | J75: 112.2156375 | K75: 311.7 | L75: 323.5 | M75: 103.4 | N75: 212.8 | O75: 2699.9 | P75: 17305 | Q75: 103.8653142 | R75: 14563.5 | S75: 14792 | T75: 5972 | U75: 10891 | V75: 126557
A76: 1999-03-01 | B76: 13.8 | C76: 140.8163265 | D76: 12.3 | E76: 10.7 | F76: 2.7 | G76: 6.8 | H76: 75.1 | I76: 588.4 | J76: 112.4832728 | K76: 313.8 | L76: 325.1 | M76: 106.9 | N76: 216.4 | O76: 2718.3 | P76: 17303 | Q76: 103.8533101 | R76: 14571.4 | S76: 14859 | T76: 6042 | U76: 11100 | V76: 127269
A77: 1999-04-01 | B77: 13.7 | C77: 139.7959184 | D77: 12.4 | E77: 10.6 | F77: 3.2 | G77: 7 | H77: 76.2 | I77: 588.6 | J77: 112.5215064 | K77: 314.5 | L77: 328.2 | M77: 116.4 | N77: 226.1 | O77: 2761 | P77: 17291 | Q77: 103.7812856 | R77: 14692.3 | S77: 14901 | T77: 6355 | U77: 11406 | V77: 128415
A78: 1999-05-01 | B78: 13.8 | C78: 140.8163265 | D78: 12.6 | E78: 10.7 | F78: 3.6 | G78: 7.2 | H78: 77.2 | I78: 590 | J78: 112.7891417 | K78: 318.1 | L78: 327.7 | M78: 123.6 | N78: 238.5 | O78: 2788.1 | P78: 17316 | Q78: 103.9313367 | R78: 14824.4 | S78: 14817 | T78: 6569 | U78: 11741 | V78: 129284
A79: 1999-06-01 | B79: 13.7 | C79: =(B79/$B$14)*100 -> 139.7959184 | D79: 12.5 | E79: 10.7 | F79: 3.9 | G79: 7.3 | H79: 76.4 | I79: 600.4 | J79: =(I79/$I$14)*100 -> 114.7772892 | K79: 323.1 | L79: 328.5 | M79: 131.1 | N79: 251.3 | O79: 2827.2 | P79: 17394 | Q79: 104.3994958 | R79: 14927.1 | S79: 14622 | T79: 6777 | U79: 12125 | V79: 130010
A80: 1999-07-01 | B80: 13.7 | C80: 139.7959184 | D80: 12.6 | E80: 10.8 | F80: 4.1 | G80: 7.3 | H80: 76.3 | I80: 603.2 | J80: 115.3125597 | K80: 322.9 | L80: 328.9 | M80: 134.2 | N80: 254.4 | O80: 2808.5 | P80: 17303 | Q80: 103.8533101 | R80: 14972.7 | S80: 14549 | T80: 6904 | U80: 12153 | V80: 129140
A81: 1999-08-01 | B81: 14 | C81: 142.8571429 | D81: 12.6 | E81: 10.8 | F81: 4 | G81: 7.3 | H81: 75.8 | I81: 605 | J81: 115.6566622 | K81: 324.5 | L81: 327.7 | M81: 133.1 | N81: 254.5 | O81: 2811.1 | P81: 17363 | Q81: 104.2134326 | R81: 14987.4 | S81: 14497 | T81: 6912 | U81: 12155 | V81: 129194
A82: 1999-09-01 | B82: 13.6 | C82: 138.7755102 | D82: 12.8 | E82: 10.6 | F82: 3.9 | G82: 7.3 | H82: 77.1 | I82: 600 | J82: 114.700822 | K82: 324.3 | L82: 330.1 | M82: 130.1 | N82: 243.4 | O82: 2815.5 | P82: 17334 | Q82: 104.0393734 | R82: 14959.6 | S82: 14781 | T82: 6854 | U82: 11838 | V82: 129970
A83: 1999-10-01 | B83: 13.5 | C83: 137.755102 | D83: 12.9 | E83: 10.9 | F83: 3.8 | G83: 7.1 | H83: 78.2 | I83: 595.4 | J83: 113.8214491 | K83: 332 | L83: 332.5 | M83: 129.1 | N83: 232.1 | O83: 2827.1 | P83: 17313 | Q83: 103.9133305 | R83: 15131.8 | S83: 15026 | T83: 6850 | U83: 11578 | V83: 130904
A84: 1999-11-01 | B84: 13.6 | C84: 138.7755102 | D84: 13.2 | E84: 10.9 | F84: 3.7 | G84: 6.9 | H84: 78.3 | I84: 594.1 | J84: 113.5729306 | K84: 342.3 | L84: 334.3 | M84: 126.5 | N84: 224.6 | O84: 2829.2 | P84: 17317 | Q84: 103.9373387 | R84: 15500.9 | S84: 15108 | T84: 6792 | U84: 11392 | V84: 131364
A85: 1999-12-01 | B85: 13.6 | C85: 138.7755102 | D85: 13.1 | E85: 10.9 | F85: 3.2 | G85: 6.8 | H85: 77.3 | I85: 598.5 | J85: 114.41407 | K85: 348.5 | L85: 335 | M85: 120.7 | N85: 224.6 | O85: 2835.6 | P85: 17299 | Q85: 103.829302 | R85: 15809.1 | S85: 15071 | T85: 6596 | U85: 11416 | V85: 131501
A86: 2000-01-01 | B86: 13.2 | C86: 134.6938776 | D86: 12.3 | E86: 10.9 | F86: 2.6 | G86: 6.5 | H86: 73.8 | I86: 590.2 | J86: 112.8273753 | K86: 325 | L86: 331.2 | M86: 107.6 | N86: 215.5 | O86: 2748.9 | P86: 17179 | Q86: 103.1090571 | R86: 15119 | S86: 14852 | T86: 6322 | U86: 11056 | V86: 128862
A87: 2000-02-01 | B87: 13.2 | C87: 134.6938776 | D87: 12.5 | E87: 11 | F87: 2.6 | G87: 6.7 | H87: 75.7 | I87: 591 | J87: 112.9803097 | K87: 319.2 | L87: 334.3 | M87: 106.1 | N87: 216.9 | O87: 2759.7 | P87: 17192 | Q87: 103.1870836 | R87: 14914.6 | S87: 15069 | T87: 6284 | U87: 11180 | V87: 129525
A88: 2000-03-01 | B88: 13.3 | C88: 135.7142857 | D88: 12.7 | E88: 11 | F88: 2.7 | G88: 6.8 | H88: 76.8 | I88: 593.1 | J88: 113.3817626 | K88: 321.3 | L88: 336.6 | M88: 111.2 | N88: 221.6 | O88: 2785.1 | P88: 17236 | Q88: 103.4511734 | R88: 14940.5 | S88: 15142 | T88: 6457 | U88: 11435 | V88: 130624
A89: 2000-04-01 | B89: 12.9 | C89: 131.6326531 | D89: 12.6 | E89: 11.1 | F89: 3.2 | G89: 7.2 | H89: 77.1 | I89: 591.3 | J89: 113.0376601 | K89: 323.5 | L89: 338.8 | M89: 121.3 | N89: 230.1 | O89: 2820.3 | P89: 17249 | Q89: 103.5291999 | R89: 15086.2 | S89: 15158 | T89: 6643 | U89: 11740 | V89: 131622
A90: 2000-05-01 | B90: 12.4 | C90: 126.5306122 | D90: 12.9 | E90: 11 | F90: 3.6 | G90: 7.3 | H90: 77.4 | I90: 591.4 | J90: 113.0567769 | K90: 326.2 | L90: 338 | M90: 128.7 | N90: 242.4 | O90: 2846.9 | P90: 17262 | Q90: 103.6072265 | R90: 15141.5 | S90: 15107 | T90: 6817 | U90: 12060 | V90: 132577
A91: 2000-06-01 | B91: 12.7 | C91: 129.5918367 | D91: 13 | E91: 11.1 | F91: 3.9 | G91: 7.4 | H91: 76.9 | I91: 603 | J91: 115.2743261 | K91: 328.5 | L91: 340.2 | M91: 135.3 | N91: 254.8 | O91: 2885.5 | P91: 17403 | Q91: 104.4535142 | R91: 15236.7 | S91: 14917 | T91: 7012 | U91: 12489 | V91: 133089
A92: 2000-07-01 | B92: 12.5 | C92: 127.5510204 | D92: 12.9 | E92: 11.3 | F92: 4 | G92: 7.9 | H92: 76.6 | I92: 600 | J92: 114.700822 | K92: 328.3 | L92: 339.7 | M92: 137.3 | N92: 259.6 | O92: 2852.5 | P92: 17318 | Q92: 103.9433407 | R92: 15238.1 | S92: 14812 | T92: 7108 | U92: 12535 | V92: 131869
A93: 2000-08-01 | B93: 12.7 | C93: 129.5918367 | D93: 12.8 | E93: 11.2 | F93: 4 | G93: 7.4 | H93: 75.9 | I93: 600.6 | J93: 114.8155228 | K93: 330.5 | L93: 340.7 | M93: 137.5 | N93: 261.3 | O93: 2858.5 | P93: 17365 | Q93: 104.2254366 | R93: 15269.2 | S93: 14812 | T93: 7113 | U93: 12528 | V93: 131880
A94: 2000-09-01 | B94: 12.4 | C94: 126.5306122 | D94: 12.8 | E94: 11.3 | F94: 3.8 | G94: 7.4 | H94: 76.8 | I94: 596.3 | J94: 113.9935003 | K94: 331.6 | L94: 341.3 | M94: 133.6 | N94: 248.3 | O94: 2859.3 | P94: 17278 | Q94: 103.7032591 | R94: 15235.6 | S94: 15139 | T94: 7036 | U94: 12170 | V94: 132547
A95: 2000-10-01 | B95: 12.7 | C95: 129.5918367 | D95: 13.2 | E95: 11.2 | F95: 3.8 | G95: 7.5 | H95: 78.2 | I95: 593.6 | J95: 113.4773466 | K95: 338.2 | L95: 342.6 | M95: 131.7 | N95: 235.9 | O95: 2864.1 | P95: 17251 | Q95: 103.541204 | R95: 15379.2 | S95: 15368 | T95: 7030 | U95: 11810 | V95: 133104
A96: 2000-11-01 | B96: 12.7 | C96: 129.5918367 | D96: 13.5 | E96: 11.3 | F96: 3.5 | G96: 7.2 | H96: 78.2 | I96: 590.8 | J96: 112.9420761 | K96: 349.1 | L96: 345.2 | M96: 127.7 | N96: 228 | O96: 2869.9 | P96: 17226 | Q96: 103.391153 | R96: 15773 | S96: 15463 | T96: 6915 | U96: 11654 | V96: 133467
A97: 2000-12-01 | B97: 12.6 | C97: 128.5714286 | D97: 13.5 | E97: 11.3 | F97: 3 | G97: 7.1 | H97: 77.3 | I97: 588.3 | J97: 112.464156 | K97: 353.2 | L97: 346.3 | M97: 119.9 | N97: 226.4 | O97: 2854.7 | P97: 17200 | Q97: 103.2350999 | R97: 16023.8 | S97: 15464 | T97: 6703 | U97: 11681 | V97: 133405
A98: 2001-01-01 | B98: 12.3 | C98: 125.5102041 | D98: 13 | E98: 11.4 | F98: 2.7 | G98: 6.6 | H98: 74 | I98: 577 | J98: 110.3039572 | K98: 326.4 | L98: 341.9 | M98: 109.3 | N98: 219.4 | O98: 2770.7 | P98: 16993 | Q98: 101.9926775 | R98: 15284.2 | S98: 15255 | T98: 6394 | U98: 11328 | V98: 130527
A99: 2001-02-01 | B99: 12.1 | C99: 123.4693878 | D99: 12.9 | E99: 11.5 | F99: 2.7 | G99: 6.7 | H99: 75.6 | I99: 571.2 | J99: 109.1951826 | K99: 317.7 | L99: 347.6 | M99: 108 | N99: 220.1 | O99: 2776.5 | P99: 16933 | Q99: 101.6325551 | R99: 15090.6 | S99: 15522 | T99: 6397 | U99: 11462 | V99: 131190
A100: 2001-03-01 | B100: 12.2 | C100: 124.4897959 | D100: 13 | E100: 11.6 | F100: 2.7 | G100: 6.9 | H100: 76.2 | I100: 569.7 | J100: 108.9084305 | K100: 318.8 | L100: 349 | M100: 110.1 | N100: 223 | O100: 2788.9 | P100: 16869 | Q100: 101.2484245 | R100: 15073.3 | S100: 15611 | T100: 6518 | U100: 11645 | V100: 131780
A101: 2001-04-01 | B101: 12 | C101: 122.4489796 | D101: 12.8 | E101: 11.5 | F101: 3.1 | G101: 7.1 | H101: 75.8 | I101: 565.4 | J101: 108.086408 | K101: 319.6 | L101: 349.5 | M101: 118.1 | N101: 233.9 | O101: 2813.6 | P101: 16750 | Q101: 100.5341816 | R101: 15043.2 | S101: 15650 | T101: 6688 | U101: 11936 | V101: 132185
A102: 2001-05-01 | B102: 12.2 | C102: 124.4897959 | D102: 12.8 | E102: 11.6 | F102: 3.5 | G102: 7.4 | H102: 78.1 | I102: 562.3 | J102: 107.493787 | K102: 322.4 | L102: 349.3 | M102: 128 | N102: 246.7 | O102: 2840.1 | P102: 16646 | Q102: 99.90996939 | R102: 15154 | S102: 15645 | T102: 6901 | U102: 12297 | V102: 132890
A103: 2001-06-01 | B103: 12.3 | C103: 125.5102041 | D103: 12.7 | E103: 11.6 | F103: 3.8 | G103: 7.7 | H103: 77.4 | I103: 567.9 | J103: 108.564328 | K103: 323.6 | L103: 349 | M103: 134.6 | N103: 257.7 | O103: 2861.6 | P103: 16615 | Q103: 99.72390613 | R103: 15244.2 | S103: 15453 | T103: 7076 | U103: 12687 | V103: 133267
A104: 2001-07-01 | B104: 12.2 | C104: 124.4897959 | D104: 12.5 | E104: 11.7 | F104: 4 | G104: 7.9 | H104: 76.7 | I104: 563.7 | J104: 107.7614223 | K104: 320.4 | L104: 347.9 | M104: 138.1 | N104: 263 | O104: 2829.3 | P104: 16393 | Q104: 98.39145309 | R104: 15161 | S104: 15370 | T104: 7153 | U104: 12757 | V104: 131776
A105: 2001-08-01 | B105: 12.3 | C105: 125.5102041 | D105: 12.9 | E105: 11.7 | F105: 4.1 | G105: 7.5 | H105: 76.9 | I105: 562.5 | J105: 107.5320206 | K105: 323 | L105: 347.9 | M105: 138.8 | N105: 262.4 | O105: 2829.1 | P105: 16332 | Q105: 98.02532861 | R105: 15185.8 | S105: 15395 | T105: 7139 | U105: 12716 | V105: 131704
A106: 2001-09-01 | B106: 12 | C106: 122.4489796 | D106: 12.5 | E106: 11.7 | F106: 3.8 | G106: 7.6 | H106: 77.4 | I106: 555.6 | J106: 106.2129612 | K106: 319.6 | L106: 350 | M106: 134.8 | N106: 247.8 | O106: 2825 | P106: 16186 | Q106: 97.14903067 | R106: 15124.6 | S106: 15711 | T106: 7052 | U106: 12273 | V106: 131968
A107: 2001-10-01 | B107: 11.8 | C107: 120.4081633 | D107: 12.8 | E107: 11.9 | F107: 3.7 | G107: 7.2 | H107: 77.8 | I107: 547.9 | J107: 104.7409673 | K107: 323.1 | L107: 352.6 | M107: 133.3 | N107: 236.8 | O107: 2820.8 | P107: 16010 | Q107: 96.09267151 | R107: 15220.3 | S107: 15982 | T107: 7012 | U107: 11945 | V107: 132168
A108: 2001-11-01 | B108: 11.9 | C108: 121.4285714 | D108: 12.9 | E108: 12 | F108: 3.6 | G108: 7.1 | H108: 78 | I108: 541.5 | J108: 103.5174919 | K108: 333.6 | L108: 355.2 | M108: 129 | N108: 227.6 | O108: 2812.6 | P108: 15847 | Q108: 95.11433888 | R108: 15572.4 | S108: 16073 | T108: 6882 | U108: 11702 | V108: 131976
A109: 2001-12-01 | B109: 11.8 | C109: 120.4081633 | D109: 13 | E109: 12.1 | F109: 3 | G109: 7 | H109: 77 | I109: 538.8 | J109: 103.0013382 | K109: 336.3 | L109: 355.3 | M109: 122.3 | N109: 224.7 | O109: 2798.4 | P109: 15723 | Q109: 94.37008583 | R109: 15709.9 | S109: 16070 | T109: 6698 | U109: 11681 | V109: 131591
A110: 2002-01-01 | B110: 11.2 | C110: 114.2857143 | D110: 10.3 | E110: 11.7 | F110: 2.5 | G110: 6.8 | H110: 72.9 | I110: 531.6 | J110: 101.6249283 | K110: 317.1 | L110: 350.3 | M110: 108.7 | N110: 221 | O110: 2719.4 | P110: 15475 | Q110: 92.88157974 | R110: 14981.1 | S110: 15854 | T110: 6363 | U110: 11385 | V110: 128706
A111: 2002-02-01 | B111: 11.1 | C111: 113.2653061 | D111: 10.2 | E111: 11.9 | F111: 2.3 | G111: 6.9 | H111: 75.2 | I111: 526 | J111: 100.5543873 | K111: 309.9 | L111: 352.3 | M111: 105.7 | N111: 220.7 | O111: 2717.6 | P111: 15414 | Q111: 92.51545525 | R111: 14781.9 | S111: 16123 | T111: 6339 | U111: 11440 | V111: 129174
A112: 2002-03-01 | B112: 11.1 | C112: 113.2653061 | D112: 10.2 | E112: 11.9 | F112: 2.3 | G112: 6.9 | H112: 74.8 | I112: 527.3 | J112: 100.8029058 | K112: 311.3 | L112: 353 | M112: 108 | N112: 222.5 | O112: 2735.9 | P112: 15375 | Q112: 92.28137567 | R112: 14810.1 | S112: 16197 | T112: 6416 | U112: 11622 | V112: 129778
A113: 2002-04-01 | B113: 11.2 | C113: 114.2857143 | D113: 10.2 | E113: 11.9 | F113: 2.7 | G113: 7.2 | H113: 76.2 | I113: 525.3 | J113: 100.4205697 | K113: 310.5 | L113: 355.5 | M113: 117.9 | N113: 231.4 | O113: 2766 | P113: 15341 | Q113: 92.07730628 | R113: 14870.7 | S113: 16237 | T113: 6563 | U113: 11823 | V113: 130364
A114: 2002-05-01 | B114: 11.3 | C114: 115.3061224 | D114: 10.3 | E114: 12 | F114: 3.2 | G114: 7.6 | H114: 76.9 | I114: 526.7 | J114: 100.6882049 | K114: 314.5 | L114: 355.9 | M114: 127.2 | N114: 245.8 | O114: 2799.2 | P114: 15335 | Q114: 92.04129404 | R114: 14956.5 | S114: 16188 | T114: 6749 | U114: 12148 | V114: 131131
A115: 2002-06-01 | B115: 11.6 | C115: 118.3673469 | D115: 10.2 | E115: 12 | F115: 3.5 | G115: 7.7 | H115: 76.7 | I115: 534.2 | J115: 102.1219652 | K115: 317.6 | L115: 358.4 | M115: 133.4 | N115: 256.9 | O115: 2822.8 | P115: 15399 | Q115: 92.42542464 | R115: 15029.4 | S115: 16039 | T115: 6924 | U115: 12467 | V115: 131511
A116: 2002-07-01 | B116: 11.6 | C116: 118.3673469 | D116: 10.2 | E116: 12 | F116: 3.6 | G116: 8.2 | H116: 76.7 | I116: 532.2 | J116: 101.7396291 | K116: 315.8 | L116: 356.1 | M116: 136.7 | N116: 264.2 | O116: 2795 | P116: 15274 | Q116: 91.67516956 | R116: 15008.1 | S116: 15943 | T116: 6984 | U116: 12536 | V116: 130068
A117: 2002-08-01 | B117: 11.6 | C117: 118.3673469 | D117: 10.3 | E117: 12 | F117: 3.7 | G117: 8 | H117: 76.5 | I117: 534.8 | J117: 102.236666 | K117: 317.4 | L117: 357.4 | M117: 136.7 | N117: 265 | O117: 2800 | P117: 15272 | Q117: 91.66316548 | R117: 14977.3 | S117: 15932 | T117: 7001 | U117: 12538 | V117: 130153
A118: 2002-09-01 | B118: 11.5 | C118: 117.3469388 | D118: 10.1 | E118: 12 | F118: 3.5 | G118: 7.6 | H118: 77.1 | I118: 530.1 | J118: 101.3381763 | K118: 315 | L118: 357.5 | M118: 133.1 | N118: 251.9 | O118: 2797.9 | P118: 15194 | Q118: 91.1950063 | R118: 14903.5 | S118: 16228 | T118: 6935 | U118: 12198 | V118: 130670
A119: 2002-10-01 | B119: 11.5 | C119: 117.3469388 | D119: 10.4 | E119: 12.1 | F119: 3.4 | G119: 7.5 | H119: 78.1 | I119: 526.3 | J119: 100.6117377 | K119: 319.8 | L119: 360.2 | M119: 132 | N119: 241.7 | O119: 2813.5 | P119: 15096 | Q119: 90.60680631 | R119: 15029.3 | S119: 16498 | T119: 6892 | U119: 12013 | V119: 131339
A120: 2002-11-01 | B120: 11.4 | C120: 116.3265306 | D120: 10.7 | E120: 12.2 | F120: 3.3 | G120: 7.4 | H120: 78.6 | I120: 523.9 | J120: 100.1529344 | K120: 331.5 | L120: 362.7 | M120: 129.2 | N120: 232 | O120: 2815.7 | P120: 15009 | Q120: 90.08462877 | R120: 15379.8 | S120: 16592 | T120: 6810 | U120: 11837 | V120: 131458
A121: 2002-12-01 | B121: 11.3 | C121: 115.3061224 | D121: 10.8 | E121: 12.2 | F121: 2.9 | G121: 7.4 | H121: 77.9 | I121: 521.2 | J121: 99.63678073 | K121: 336.4 | L121: 362.1 | M121: 120.9 | N121: 232.1 | O121: 2800.9 | P121: 14919 | Q121: 89.54444511 | R121: 15573 | S121: 16551 | T121: 6613 | U121: 11823 | V121: 131045
A122: 2003-01-01 | B122: 11.1 | C122: 113.2653061 | D122: 10.2 | E122: 12.3 | F122: 2.5 | G122: 7.2 | H122: 73.8 | I122: 509.3 | J122: 97.36188109 | K122: 314.2 | L122: 358.8 | M122: 108.6 | N122: 225.6 | O122: 2709.5 | P122: 14744 | Q122: 88.49408799 | R122: 14854.8 | S122: 16325 | T122: 6293 | U122: 11568 | V122: 128358
A123: 2003-02-01 | B123: 11 | C123: 112.244898 | D123: 10 | E123: 12.3 | F123: 2.4 | G123: 7.3 | H123: 76 | I123: 504.9 | J123: 96.52074173 | K123: 308 | L123: 360.6 | M123: 105 | N123: 224 | O123: 2717.4 | P123: 14674 | Q123: 88.07394514 | R123: 14648.1 | S123: 16569 | T123: 6224 | U123: 11599 | V123: 128769
A124: 2003-03-01 | B124: 11 | C124: 112.244898 | D124: 9.9 | E124: 12.3 | F124: 2.4 | G124: 7.4 | H124: 75.8 | I124: 504.2 | J124: 96.38692411 | K124: 307.2 | L124: 360.8 | M124: 106.6 | N124: 226.6 | O124: 2725.5 | P124: 14654 | Q124: 87.95390433 | R124: 14648.2 | S124: 16632 | T124: 6319 | U124: 11769 | V124: 129258
A125: 2003-04-01 | B125: 10.9 | C125: 111.2244898 | D125: 10.1 | E125: 12.4 | F125: 2.8 | G125: 7.4 | H125: 77 | I125: 503.5 | J125: 96.25310648 | K125: 310.7 | L125: 362.7 | M125: 116.2 | N125: 235.8 | O125: 2760.3 | P125: 14563 | Q125: 87.40771862 | R125: 14721.7 | S125: 16698 | T125: 6534 | U125: 11984 | V125: 129908
A126: 2003-05-01 | B126: 10.9 | C126: 111.2244898 | D126: 10.3 | E126: 12.4 | F126: 3.4 | G126: 7.7 | H126: 78.2 | I126: 504 | J126: 96.3486905 | K126: 315.6 | L126: 362.6 | M126: 127.8 | N126: 252.2 | O126: 2794.5 | P126: 14556 | Q126: 87.36570434 | R126: 14821.8 | S126: 16640 | T126: 6767 | U126: 12302 | V126: 130663
A127: 2003-06-01 | B127: 10.9 | C127: 111.2244898 | D127: 10.2 | E127: 12.4 | F127: 3.6 | G127: 7.8 | H127: 77.3 | I127: 508.6 | J127: 97.22806347 | K127: 318.3 | L127: 358.1 | M127: 133.6 | N127: 262.6 | O127: 2816.8 | P127: 14593 | Q127: 87.58777985 | R127: 14885.1 | S127: 16407 | T127: 6951 | U127: 12671 | V127: 130989
A128: 2003-07-01 | B128: 10.9 | C128: 111.2244898 | D128: 10.2 | E128: 12.4 | F128: 3.6 | G128: 8 | H128: 77.1 | I128: 507.6 | J128: 97.03689543 | K128: 315.9 | L128: 358.8 | M128: 136 | N128: 267.5 | O128: 2780.3 | P128: 14432 | Q128: 86.62145129 | R128: 14856 | S128: 16268 | T128: 7029 | U128: 12776 | V128: 129646
A129: 2003-08-01 | B129: 10.8 | C129: 110.2040816 | D129: 10.3 | E129: 12.4 | F129: 3.8 | G129: 7.8 | H129: 76.5 | I129: 507.6 | J129: 97.03689543 | K129: 318.3 | L129: 359 | M129: 136.5 | N129: 268.2 | O129: 2782.3 | P129: 14467 | Q129: 86.83152272 | R129: 14893.8 | S129: 16247 | T129: 7062 | U129: 12768 | V129: 129697
A130: 2003-09-01 | B130: 10.7 | C130: 109.1836735 | D130: 10.5 | E130: 12.4 | F130: 3.7 | G130: 7.8 | H130: 77.7 | I130: 503.4 | J130: 96.23398968 | K130: 316.7 | L130: 366.3 | M130: 133.3 | N130: 257.5 | O130: 2791.3 | P130: 14419 | Q130: 86.54342476 | R130: 14860.8 | S130: 16547 | T130: 7015 | U130: 12391 | V130: 130351
A131: 2003-10-01 | B131: 10.6 | C131: 108.1632653 | D131: 10.9 | E131: 12.4 | F131: 3.6 | G131: 7.6 | H131: 78.9 | I131: 500.4 | J131: 95.66048557 | K131: 321.2 | L131: 370.1 | M131: 132.8 | N131: 248.3 | O131: 2808.5 | P131: 14368 | Q131: 86.23732069 | R131: 15005.8 | S131: 16869 | T131: 6989 | U131: 12177 | V131: 131142
A132: 2003-11-01 | B132: 10.4 | C132: 106.122449 | D132: 11.2 | E132: 12.5 | F132: 3.3 | G132: 7.5 | H132: 78.9 | I132: 498.1 | J132: 95.22079908 | K132: 330.6 | L132: 370.1 | M132: 129.1 | N132: 239.5 | O132: 2801.5 | P132: 14339 | Q132: =(P132/$P$2)*100 -> 86.06326151 | R132: 15310.9 | S132: 16935 | T132: 6903 | U132: 12026 | V132: 131302
A133: 2003-12-01 | B133: 10.4 | C133: 106.122449 | D133: 11.3 | E133: 12.5 | F133: 2.9 | G133: 7.3 | H133: 78.2 | I133: 496.8 | J133: 94.97228063 | K133: 336.6 | L133: 369.5 | M133: 123.4 | N133: 237.9 | O133: 2798.1 | P133: 14304 | Q133: 85.85319008 | R133: 15500.7 | S133: 16916 | T133: 6729 | U133: 12041 | V133: 131120
A134: 2004-01-01 | B134: 10.1 | C134: 103.0612245 | D134: 10.7 | E134: 12.5 | F134: 2.5 | G134: 7.1 | H134: 74.2 | I134: 493.5 | J134: 94.34142611 | K134: 313.8 | L134: 366.5 | M134: 110.4 | N134: 230.3 | O134: 2716 | P134: 14171 | Q134: 85.05491867 | R134: 14857.1 | S134: 16665 | T134: 6431 | U134: 11760 | V134: 128458
A135: 2004-02-01 | B135: 10.2 | C135: 104.0816327 | D135: 10.6 | E135: 12.5 | F135: 2.4 | G135: 7.1 | H135: 76.4 | I135: 492.6 | J135: 94.16937488 | K135: 307.3 | L135: 369.1 | M135: 107.6 | N135: 229.4 | O135: 2725.1 | P135: 14172 | Q135: 85.06092071 | R135: 14689.3 | S135: 16895 | T135: 6392 | U135: 11838 | V135: 129067
A136: 2004-03-01 | B136: 10.3 | C136: 105.1020408 | D136: 10.5 | E136: 12.5 | F136: 2.5 | G136: 7.2 | H136: 76.8 | I136: 494.5 | J136: 94.53259415 | K136: 308.1 | L136: 369.7 | M136: 110.9 | N136: 232.6 | O136: 2742 | P136: 14220 | Q136: 85.34901867 | R136: 14770.9 | S136: 16988 | T136: 6551 | U136: 12077 | V136: 130107
A137: 2004-04-01 | B137: 10.3 | C137: 105.1020408 | D137: 10.6 | E137: 12.6 | F137: 3 | G137: 7.4 | H137: 78.1 | I137: 497.4 | J137: 95.08698146 | K137: 310.4 | L137: 372.4 | M137: 122.2 | N137: 242.7 | O137: 2781.5 | P137: 14267 | Q137: 85.63111458 | R137: 14858.1 | S137: 17058 | T137: 6778 | U137: 12355 | V137: 131224
A138: 2004-05-01 | B138: 10.4 | C138: 106.122449 | D138: 10.7 | E138: 12.5 | F138: 3.4 | G138: 7.7 | H138: 78.8 | I138: 500.4 | J138: 95.66048557 | K138: 315.6 | L138: 371.9 | M138: 129.6 | N138: 256.2 | O138: 2814.8 | P138: 14337 | Q138: 86.05125743 | R138: 14982.6 | S138: 16994 | T138: 7012 | U138: 12691 | V138: 132127
A139: 2004-06-01 | B139: 10.6 | C139: 108.1632653 | D139: 10.8 | E139: 12.6 | F139: 3.5 | G139: 7.8 | H139: 78.2 | I139: 506.6 | J139: 96.84572739 | K139: 319.7 | L139: 372.6 | M139: 135.4 | N139: 265.9 | O139: 2845.2 | P139: 14434 | Q139: 86.63345537 | R139: 15077.3 | S139: 16753 | T139: 7194 | U139: 13051 | V139: 132569
A140: 2004-07-01 | B140: 10.7 | C140: 109.1836735 | D140: 10.5 | E140: 12.6 | F140: 3.7 | G140: 8.3 | H140: 78.1 | I140: 510.7 | J140: 97.62951634 | K140: 317.9 | L140: 372.2 | M140: 139.7 | N140: 275 | O140: 2831.8 | P140: 14370 | Q140: 86.24932477 | R140: 15046.7 | S140: 16655 | T140: 7292 | U140: 13128 | V140: 131405
A141: 2004-08-01 | B141: 10.7 | C141: 109.1836735 | D141: 10.6 | E141: 12.6 | F141: 3.7 | G141: 7.7 | H141: 77.4 | I141: 512.9 | J141: 98.05008603 | K141: 318.5 | L141: 372 | M141: 138.7 | N141: 275.6 | O141: 2836.1 | P141: 14431 | Q141: 86.61544925 | R141: 15049.9 | S141: 16629 | T141: 7311 | U141: 13083 | V141: 131421
A142: 2004-09-01 | B142: 10.7 | C142: 109.1836735 | D142: 10.7 | E142: 12.6 | F142: 3.6 | G142: 7.7 | H142: 78.7 | I142: 508.7 | J142: 97.24718027 | K142: 316.1 | L142: 372.7 | M142: 135.7 | N142: 263.4 | O142: 2833.9 | P142: 14385 | Q142: 86.33935538 | R142: 14991.9 | S142: 16916 | T142: 7249 | U142: 12729 | V142: 132133
A143: 2004-10-01 | B143: 10.6 | C143: 108.1632653 | D143: 10.7 | E143: 12.5 | F143: 3.6 | G143: 7.7 | H143: 79.3 | I143: 505.9 | J143: 96.71190977 | K143: 318.9 | L143: 374.7 | M143: 134 | N143: 252.9 | O143: 2844.7 | P143: 14360 | Q143: 86.18930436 | R143: 15149.9 | S143: 17249 | T143: 7286 | U143: 12519 | V143: 133111
A144: 2004-11-01 | B144: 10.5 | C144: 107.1428571 | D144: 11.1 | E144: 12.6 | F144: 3.5 | G144: 7.6 | H144: 80.2 | I144: 504.5 | J144: 96.44427452 | K144: 329.1 | L144: 376.6 | M144: 131.4 | N144: 243.4 | O144: 2844.1 | P144: 14331 | Q144: 86.01524518 | R144: 15521.7 | S144: 17325 | T144: 7205 | U144: 12348 | V144: 133360
A145: 2004-12-01 | B145: 10.5 | C145: 107.1428571 | D145: 11.2 | E145: 12.6 | F145: 3 | G145: 7.5 | H145: 79.4 | I145: 505 | J145: 96.53985854 | K145: 333.4 | L145: 377 | M145: 125.4 | N145: 242.6 | O145: 2838.4 | P145: 14306 | Q145: 85.86519417 | R145: 15702.4 | S145: 17307 | T145: 7012 | U145: 12336 | V145: 133129
A146: 2005-01-01 | B146: 10.3 | C146: 105.1020408 | D146: 10.6 | E146: 12.6 | F146: 2.5 | G146: 7.2 | H146: 76 | I146: 496.6 | J146: 94.93404703 | K146: 311.7 | L146: 373.9 | M146: 112.1 | N146: 233.8 | O146: 2754 | P146: 14142 | Q146: 84.88085949 | R146: 15046.8 | S146: 17063 | T146: 6682 | U146: 12064 | V146: 130423
A147: 2005-02-01 | B147: 10.5 | C147: 107.1428571 | D147: 10.5 | E147: 12.7 | F147: 2.4 | G147: 7.1 | H147: 77.5 | I147: 498.5 | J147: 95.2972663 | K147: 306.2 | L147: 375.8 | M147: 109.5 | N147: 233.9 | O147: 2765.5 | P147: 14168 | Q147: 85.03691255 | R147: 14907.4 | S147: 17287 | T147: 6699 | U147: 12151 | V147: 131245
A148: 2005-03-01 | B148: 10.6 | C148: 108.1632653 | D148: 10.5 | E148: 12.7 | F148: 2.5 | G148: 7.2 | H148: 78 | I148: 499.7 | J148: 95.52666794 | K148: 307.4 | L148: 376.9 | M148: 111.8 | N148: 237.7 | O148: 2780.1 | P148: 14200 | Q148: 85.22897785 | R148: 14950.9 | S148: 17355 | T148: 6838 | U148: 12365 | V148: 132083
A149: 2005-04-01 | B149: 10.7 | C149: 109.1836735 | D149: 10.9 | E149: 12.8 | F149: 3 | G149: 7.6 | H149: 79.9 | I149: 501.4 | J149: 95.8516536 | K149: 310.2 | L149: 379.2 | M149: 123.2 | N149: 250.3 | O149: 2827.2 | P149: 14203 | Q149: 85.24698397 | R149: 15063.8 | S149: 17426 | T149: 7128 | U149: 12711 | V149: 133294
A150: 2005-05-01 | B150: 10.8 | C150: 110.2040816 | D150: 11 | E150: 12.8 | F150: 3.3 | G150: 7.9 | H150: 80.7 | I150: 502.5 | J150: 96.06193844 | K150: 314 | L150: 378.8 | M150: 130.5 | N150: 261.5 | O150: 2851.3 | P150: 14246 | Q150: 85.50507172 | R150: 15189.6 | S150: 17386 | T150: 7360 | U150: 13010 | V150: 134104
A151: 2005-06-01 | B151: 11.1 | C151: 113.2653061 | D151: 10.8 | E151: 12.9 | F151: 3.5 | G151: 8 | H151: 80.4 | I151: 511.4 | J151: 97.76333397 | K151: 315.4 | L151: 380.3 | M151: 136.5 | N151: 271.9 | O151: 2876.7 | P151: 14323 | Q151: 85.96722886 | R151: 15295.1 | S151: 17191 | T151: 7574 | U151: 13413 | V151: 134769
A152: 2005-07-01 | B152: 11.2 | C152: 114.2857143 | D152: 10.8 | E152: 12.8 | F152: 3.6 | G152: 8.2 | H152: 80.4 | I152: 512.5 | J152: 97.97361881 | K152: 315.7 | L152: 378.7 | M152: 139.5 | N152: 278 | O152: 2858 | P152: 14250 | Q152: 85.52907989 | R152: 15322.6 | S152: 17076 | T152: 7652 | U152: 13514 | V152: 133705
A153: 2005-08-01 | B153: 11.3 | C153: 115.3061224 | D153: 10.8 | E153: 12.8 | F153: 3.6 | G153: 7.7 | H153: 79.7 | I153: 513.7 | J153: 98.20302045 | K153: 317.7 | L153: 379 | M153: 138.9 | N153: 278.8 | O153: 2860.2 | P153: 14288 | Q153: 85.75715743 | R153: 15343.6 | S153: 17084 | T153: 7704 | U153: 13497 | V153: 133951
A154: 2005-09-01 | B154: 11.3 | C154: 115.3061224 | D154: 10.9 | E154: 12.8 | F154: 3.5 | G154: 7.7 | H154: 81.2 | I154: 508.5 | J154: 97.20894666 | K154: 315.1 | L154: 381.1 | M154: 136.2 | N154: 267.7 | O154: 2873 | P154: 14234 | Q154: 85.43304724 | R154: 15221.7 | S154: 17415 | T154: 7645 | U154: 13041 | V154: 134576
A155: 2005-10-01 | B155: 11.3 | C155: 115.3061224 | D155: 11 | E155: 13 | F155: 3.6 | G155: 7.6 | H155: 81.9 | I155: 505.6 | J155: 96.65455936 | K155: 321.9 | L155: 382.3 | M155: 134.6 | N155: 255.2 | O155: 2870 | P155: 14224 | Q155: 85.37302683 | R155: 15344 | S155: 17672 | T155: 7679 | U155: 12782 | V155: 135302
A156: 2005-11-01 | B156: 11.3 | C156: 115.3061224 | D156: 11.4 | E156: 13.1 | F156: 3.4 | G156: 7.5 | H156: 82.1 | I156: 504.2 | J156: 96.38692411 | K156: 331.5 | L156: 384.4 | M156: 132.2 | N156: 247.7 | O156: 2871.8 | P156: 14218 | Q156: 85.33701458 | R156: 15736.7 | S156: 17773 | T156: 7650 | U156: 12629 | V156: 135857
A157: 2005-12-01 | B157: 11.4 | C157: 116.3265306 | D157: 11.4 | E157: 13.1 | F157: 2.9 | G157: 7.4 | H157: 81.8 | I157: 504.2 | J157: 96.38692411 | K157: 336.1 | L157: 384.4 | M157: 125.2 | N157: 245.6 | O157: 2872 | P157: 14222 | Q157: 85.36102275 | R157: 15933.3 | S157: 17738 | T157: 7425 | U157: 12609 | V157: 135655
A158: 2006-01-01 | B158: 11.2 | C158: 114.2857143 | D158: 10.8 | E158: 12.9 | F158: 2.6 | G158: 7.2 | H158: 78.6 | I158: 501.1 | J158: 95.79430319 | K158: 310.4 | L158: 381.5 | M158: 114.3 | N158: 239 | O158: 2785.6 | P158: 14093 | Q158: 84.5867595 | R158: 15240.5 | S158: 17509 | T158: 7182 | U158: 12339 | V158: 133000
A159: 2006-02-01 | B159: 11.4 | C159: 116.3265306 | D159: 10.7 | E159: 13 | F159: 2.6 | G159: 7.2 | H159: 80.2 | I159: 498.6 | J159: 95.3163831 | K159: 303.9 | L159: 383.9 | M159: 111.9 | N159: 239.6 | O159: 2789.4 | P159: 14104 | Q159: 84.65278195 | R159: 15062.1 | S159: 17788 | T159: 7218 | U159: 12438 | V159: 133924
A160: 2006-03-01 | B160: 11.4 | C160: 116.3265306 | D160: 10.8 | E160: 13 | F160: 2.7 | G160: 7.4 | H160: 80.8 | I160: 500.3 | J160: 95.64136876 | K160: 305.5 | L160: 384.2 | M160: 113.4 | N160: 243.4 | O160: 2807.2 | P160: 14141 | Q160: 84.87485745 | R160: 15145.1 | S160: 17862 | T160: 7337 | U160: 12674 | V160: 134903
A161: 2006-04-01 | B161: 11.5 | C161: 117.3469388 | D161: 10.9 | E161: 13 | F161: 3.2 | G161: 7.7 | H161: 82.6 | I161: 501.9 | J161: 95.94723762 | K161: 307.6 | L161: 385.3 | M161: 124 | N161: 252.6 | O161: 2846.9 | P161: 14172 | Q161: 85.06092071 | R161: 15166.2 | S161: 17903 | T161: 7557 | U161: 12960 | V161: 135816
A162: 2006-05-01 | B162: 11.4 | C162: 116.3265306 | D162: 11 | E162: 13.2 | F162: 3.5 | G162: 8 | H162: 83.4 | I162: 503.5 | J162: 96.25310648 | K162: 311.4 | L162: 386.4 | M162: 131.1 | N162: 264.4 | O162: 2875.8 | P162: 14187 | Q162: 85.15095132 | R162: 15248.8 | S162: 17850 | T162: 7779 | U162: 13268 | V162: 136621
A163: 2006-06-01 | B163: 11.6 | C163: 118.3673469 | D163: 10.9 | E163: 13.2 | F163: 3.8 | G163: 7.9 | H163: 82.7 | I163: 513.9 | J163: 98.24125406 | K163: 314.4 | L163: 387.4 | M163: 137.8 | N163: 276.5 | O163: 2912.2 | P163: 14303 | Q163: 85.84718804 | R163: 15327.4 | S163: 17607 | T163: 7945 | U163: 13638 | V163: 137121
A164: 2006-07-01 | B164: 11.7 | C164: 119.3877551 | D164: 10.8 | E164: 13.3 | F164: 3.7 | G164: 8.1 | H164: 82.3 | I164: 513.9 | J164: 98.24125406 | K164: 312.5 | L164: 386.3 | M164: 138.5 | N164: 282.1 | O164: 2880.9 | P164: 14215 | Q164: 85.31900846 | R164: 15321.2 | S164: 17468 | T164: 8013 | U164: 13790 | V164: 135945
A165: 2006-08-01 | B165: 11.7 | C165: 119.3877551 | D165: 10.8 | E165: 13.4 | F165: 3.7 | G165: 8.1 | H165: 82.1 | I165: 514.5 | J165: 98.35595488 | K165: 314 | L165: 386.7 | M165: 138.1 | N165: 283.1 | O165: 2882 | P165: 14246 | Q165: 85.50507172 | R165: 15331.9 | S165: 17500 | T165: 8045 | U165: 13764 | V165: 136149
A166: 2006-09-01 | B166: 11.4 | C166: 116.3265306 | D166: 10.9 | E166: 13.5 | F166: 3.6 | G166: 7.6 | H166: 82.8 | I166: 509.3 | J166: 97.36188109 | K166: 311.2 | L166: 388.5 | M166: 134.9 | N166: 271 | O166: 2891 | P166: 14192 | Q166: 85.18096153 | R166: 15230.2 | S166: 17857 | T166: 7952 | U166: 13322 | V166: 136817
A167: 2006-10-01 | B167: 11.5 | C167: 117.3469388 | D167: 11 | E167: 13.4 | F167: 3.5 | G167: 7.5 | H167: 83.5 | I167: 505.9 | J167: 96.71190977 | K167: 315.5 | L167: 390.8 | M167: 132.9 | N167: 260.6 | O167: 2889.9 | P167: 14114 | Q167: 84.71280235 | R167: 15380.8 | S167: 18130 | T167: 7909 | U167: 13125 | V167: 137516
A168: 2006-11-01 | B168: 11.5 | C168: 117.3469388 | D168: 11.4 | E168: 13.4 | F168: 3.4 | G168: 7.4 | H168: 84.5 | I168: 503.3 | J168: =(I168/$I$14)*100 -> 96.21487287 | K168: 328 | L168: 392.3 | M168: 129.3 | N168: 251.4 | O168: 2889.9 | P168: 14060 | Q168: 84.38869216 | R168: 15808.1 | S168: 18228 | T168: 7772 | U168: 12994 | V168: 137898
A169: 2006-12-01 | B169: 11.5 | C169: =(B169/$B$14)*100 -> 117.3469388 | D169: 11.5 | E169: 13.6 | F169: 3 | G169: 7.3 | H169: 84.2 | I169: 502.9 | J169: 96.13840566 | K169: 331.4 | L169: 392.1 | M169: 123.6 | N169: 250.2 | O169: 2887.7 | P169: 14036 | Q169: 84.24464318 | R169: 15977.1 | S169: 18212 | T169: 7585 | U169: 13005 | V169: 137786
A170: 2007-01-01 | B170: 11.3 | C170: 115.3061224 | D170: 11 | E170: 13.5 | F170: 2.8 | G170: 7.1 | H170: 81.2 | I170: 498.7 | J170: 95.3354999 | K170: 313.5 | L170: 387.6 | M170: 112.5 | N170: 242.9 | O170: 2808.9 | P170: 13898 | Q170: 83.41636156 | R170: 15337.1 | S170: 17955 | T170: 7295 | U170: 12703 | V170: 134994
A171: 2007-02-01 | B171: 11.4 | C171: 116.3265306 | D171: 10.8 | E171: 13.5 | F171: 2.8 | G171: 7.1 | H171: 81.8 | I171: 496.3 | J171: 94.87669662 | K171: 305.6 | L171: 389.8 | M171: 107.9 | N171: 242.8 | O171: 2804.4 | P171: 13886 | Q171: 83.34433707 | R171: 15176.5 | S171: 18218 | T171: 7173 | U171: 12790 | V171: 135683
A172: 2007-03-01 | B172: 11.1 | C172: 113.2653061 | D172: 10.8 | E172: 13.6 | F172: 3 | G172: 7.2 | H172: 81.9 | I172: 495.9 | J172: 94.8002294 | K172: 307.6 | L172: 390.7 | M172: 113 | N172: 246 | O172: 2824.3 | P172: 13887 | Q172: 83.35033912 | R172: 15295.4 | S172: 18300 | T172: 7353 | U172: 12987 | V172: 136576
A173: 2007-04-01 | B173: 11.2 | C173: 114.2857143 | D173: 10.9 | E173: 13.6 | F173: 3.3 | G173: 7.6 | H173: 83.4 | I173: 497.3 | J173: 95.06786465 | K173: 307.9 | L173: 391.2 | M173: 120 | N173: 254.2 | O173: 2856.6 | P173: 13875 | Q173: 83.27831463 | R173: 15321.7 | S173: 18368 | T173: 7518 | U173: 13260 | V173: 137381
A174: 2007-05-01 | B174: 11.1 | C174: 113.2653061 | D174: 11.1 | E174: 13.6 | F174: 3.8 | G174: 7.8 | H174: 84.3 | I174: 499.5 | J174: 95.48843433 | K174: 314 | L174: 392.7 | M174: 130.2 | N174: 268.6 | O174: 2898.4 | P174: 13901 | Q174: 83.43436769 | R174: 15457.6 | S174: 18328 | T174: 7733 | U174: 13630 | V174: 138323
A175: 2007-06-01 | B175: 11.4 | C175: 116.3265306 | D175: 11 | E175: 13.7 | F175: 4.1 | G175: 7.9 | H175: 84 | I175: 509.6 | J175: 97.4192315 | K175: 316.1 | L175: 393.5 | M175: 135.7 | N175: 281 | O175: 2936.8 | P175: 13987 | Q175: 83.95054318 | R175: 15506.1 | S175: 18134 | T175: 7926 | U175: 14012 | V175: 138825
A176: 2007-07-01 | B176: 11.3 | C176: 115.3061224 | D176: 10.9 | E176: 13.6 | F176: 4.1 | G176: 8.4 | H176: 83.9 | I176: 509.1 | J176: 97.32364749 | K176: 315.7 | L176: 392.3 | M176: 137 | N176: 284.1 | O176: 2900.2 | P176: 13919 | Q176: 83.54240442 | R176: 15508.8 | S176: 18007 | T176: 7957 | U176: 14092 | V176: 137425
A177: 2007-08-01 | B177: 11.3 | C177: 115.3061224 | D177: 10.9 | E177: 13.8 | F177: 4.2 | G177: 8.2 | H177: 83.7 | I177: 509.1 | J177: 97.32364749 | K177: 315 | L177: 393.5 | M177: 136.9 | N177: 286.1 | O177: 2901.5 | P177: 13927 | Q177: 83.59042074 | R177: 15532.7 | S177: 18061 | T177: 7932 | U177: 14045 | V177: 137534
A178: 2007-09-01 | B178: 11.1 | C178: 113.2653061 | D178: 10.9 | E178: 13.7 | F178: 4.1 | G178: 7.9 | H178: 84 | I178: 503.2 | J178: 96.19575607 | K178: 311.9 | L178: 394.7 | M178: 133.8 | N178: 271.4 | O178: 2901.7 | P178: 13886 | Q178: 83.34433707 | R178: 15435.5 | S178: 18364 | T178: 7838 | U178: 13637 | V178: 138096
A179: 2007-10-02 | B179: 11.1 | C179: 113.2653061 | D179: 11 | E179: 13.7 | F179: 4 | G179: 7.7 | H179: 84.7 | I179: 499.6 | J179: 95.50755114 | K179: 314.9 | L179: 394.5 | M179: 132.8 | N179: 261.9 | O179: 2902.8 | P179: 13812 | Q179: 82.90018606 | R179: 15523.4 | S179: 18659 | T179: 7796 | U179: 13441 | V179: 138835
A180: 2007-11-01 | B180: 11.1 | C180: 113.2653061 | D180: 11.2 | E180: 13.8 | F180: 3.8 | G180: 7.5 | H180: 85.2 | I180: 498.6 | J180: 95.3163831 | K180: 325.6 | L180: 395.2 | M180: 130 | N180: 253.6 | O180: 2904 | P180: 13795 | Q180: 82.79815137 | R180: 15988.8 | S180: 18737 | T180: 7647 | U180: 13278 | V180: 139143
A181: 2007-12-01 | B181: 11.1 | C181: 113.2653061 | D181: 11.3 | E181: 13.8 | F181: 3.4 | G181: 7.4 | H181: 85.1 | I181: 498.7 | J181: 95.3354999 | K181: 327.4 | L181: 396.2 | M181: 121.2 | N181: 251 | O181: 2900.3 | P181: 13776 | Q181: 82.6841126 | R181: 16156.4 | S181: 18729 | T181: 7390 | U181: 13244 | V181: 138929
A182: 2008-01-01 | B182: 11 | C182: 112.244898 | D182: 10.8 | E182: 13.8 | F182: 3 | G182: 7.2 | H182: 81.7 | I182: 495.8 | J182: 94.7811126 | K182: 310.3 | L182: 392.3 | M182: 108 | N182: 242.2 | O182: 2821.6 | P182: 13619 | Q182: 81.74179221 | R182: 15458.3 | S182: 18488 | T182: 7053 | U182: 12905 | V182: 135896
A183: 2008-02-01 | B183: 11.1 | C183: 113.2653061 | D183: 10.8 | E183: 13.8 | F183: 3 | G183: 7.2 | H183: 82.5 | I183: 493.9 | J183: 94.41789333 | K183: 302.5 | L183: 394.3 | M183: 104.9 | N183: 241.1 | O183: 2817.3 | P183: 13578 | Q183: 81.49570854 | R183: 15225.6 | S183: 18757 | T183: 6983 | U183: 12971 | V183: 136414
A184: 2008-03-01 | B184: 11.1 | C184: 113.2653061 | D184: 10.8 | E184: 13.9 | F184: 2.9 | G184: 7.2 | H184: 82.5 | I184: 493.8 | J184: 94.39877652 | K184: 303.8 | L184: 395.7 | M184: 106.8 | N184: 244.2 | O184: 2830.1 | P184: 13559 | Q184: 81.38166977 | R184: 15279 | S184: 18833 | T184: 7047 | U184: 13156 | V184: 137003
A185: 2008-04-01 | B185: 11.2 | C185: 114.2857143 | D185: 10.7 | E185: 13.8 | F185: 3.2 | G185: 7.5 | H185: 83.6 | I185: 493.4 | J185: 94.32230931 | K185: 305.9 | L185: 396.5 | M185: 113.8 | N185: 252.7 | O185: 2858.6 | P185: 13516 | Q185: 81.12358202 | R185: 15241.8 | S185: 18901 | T185: 7160 | U185: 13396 | V185: 137535
A186: 2008-05-01 | B186: 11.2 | C186: 114.2857143 | D186: 10.7 | E186: 13.8 | F186: 3.4 | G186: 7.7 | H186: 83.9 | I186: 493.9 | J186: 94.41789333 | K186: 309.9 | L186: 398.1 | M186: 123.9 | N186: 268.3 | O186: 2900.8 | P186: 13530 | Q186: 81.20761059 | R186: 15296.3 | S186: 18838 | T186: 7324 | U186: 13709 | V186: 138105
A187: 2008-06-01 | B187: 11.2 | C187: 114.2857143 | D187: 10.6 | E187: 13.8 | F187: 3.6 | G187: 7.7 | H187: 83.1 | I187: 502.2 | J187: 96.00458803 | K187: 312 | L187: 398.5 | M187: 127.9 | N187: 277.9 | O187: 2921.9 | P187: 13580 | Q187: 81.50771262 | R187: 15337.1 | S187: 18664 | T187: 7425 | U187: 14052 | V187: 138296
A188: 2008-07-01 | B188: 11.2 | C188: 114.2857143 | D188: 10.5 | E188: 13.9 | F188: 3.3 | G188: 8 | H188: 82.8 | I188: 500.4 | J188: 95.66048557 | K188: 311.2 | L188: 397.8 | M188: 129.4 | N188: 281.2 | O188: 2890.3 | P188: 13472 | Q188: 80.85949223 | R188: 15302.4 | S188: 18553 | T188: 7448 | U188: 14129 | V188: 136811
A189: 2008-08-01 | B189: 11.1 | C189: 113.2653061 | D189: 10.5 | E189: 13.8 | F189: 3.3 | G189: 7.6 | H189: 81.6 | I189: 499.3 | J189: 95.45020073 | K189: 312 | L189: 399.5 | M189: 129 | N189: 282.2 | O189: 2889.1 | P189: 13459 | Q189: 80.7814657 | R189: 15265.1 | S189: 18608 | T189: 7435 | U189: 14056 | V189: 136697
A190: 2008-09-01 | B190: 10.9 | C190: 111.2244898 | D190: 10.5 | E190: 13.7 | F190: 3.1 | G190: 7.6 | H190: 82.1 | I190: 492.6 | J190: 94.16937488 | K190: 307.9 | L190: 400.8 | M190: 125.6 | N190: 268.7 | O190: 2892.3 | P190: 13376 | Q190: 80.28329632 | R190: 15093.8 | S190: 18857 | T190: 7305 | U190: 13563 | V190: 136748
A191: 2008-10-01 | B191: 10.9 | C191: 111.2244898 | D191: 10.7 | E191: 13.9 | F191: 3.1 | G191: 7.5 | H191: 82.4 | I191: 488.3 | J191: 93.34735232 | K191: 310.7 | L191: 405.3 | M191: 124.1 | N191: 259.6 | O191: 2892.4 | P191: 13214 | Q191: 79.31096573 | R191: 15132.4 | S191: 19138 | T191: 7208 | U191: 13300 | V191: 137038
A192: 2008-11-01 | B192: 10.9 | C192: 111.2244898 | D192: 10.9 | E192: 14 | F192: 2.8 | G192: 7.4 | H192: 82.4 | I192: 483.6 | J192: 92.44886255 | K192: 316.8 | L192: 406.5 | M192: 118.4 | N192: 249.2 | O192: 2879.9 | P192: 13085 | Q192: 78.53670248 | R192: 15346 | S192: 19219 | T192: 6945 | U192: 13040 | V192: 136355
A193: 2008-12-01 | B193: 10.6 | C193: 108.1632653 | D193: 11.1 | E193: 13.9 | F193: 2.6 | G193: 7.4 | H193: 81.7 | I193: 478.1 | J193: 91.39743835 | K193: 319.1 | L193: 408.4 | M193: 108.9 | N193: 246.1 | O193: 2857.4 | P193: 12883 | Q193: 77.32429026 | R193: 15418.7 | S193: 19201 | T193: 6612 | U193: 12959 | V193: 135321
A194: 2009-01-09 | B194: 10.5 | C194: 107.1428571 | D194: 10.4 | E194: 13.8 | F194: 2.2 | G194: 7 | H194: 77.2 | I194: 464.9 | J194: 88.87402026 | K194: 299.4 | L194: 403.7 | M194: 93.9 | N194: 235.1 | O194: 2747.3 | P194: 12450 | Q194: 74.72540664 | R194: 14682.7 | S194: 18968 | T194: 6154 | U194: 12607 | V194: 131627
A195: 2009-02-09 | B195: 10.3 | C195: 105.1020408 | D195: 10.3 | E195: 13.8 | F195: 2.1 | G195: 7.1 | H195: 77.9 | I195: 452.8 | J195: 86.56088702 | K195: 292.4 | L195: 405.7 | M195: 91.4 | N195: 235.6 | O195: 2734.3 | P195: 12266 | Q195: 73.62103115 | R195: 14433.5 | S195: 19187 | T195: 6000 | U195: 12616 | V195: 131387
A196: 2009-03-09 | B196: 10.1 | C196: 103.0612245 | D196: 10.3 | E196: 13.8 | F196: 2 | G196: 7.2 | H196: 77.9 | I196: 444.7 | J196: 85.01242592 | K196: 291.4 | L196: 407.4 | M196: 91 | N196: 237.9 | O196: 2726.4 | P196: 12112 | Q196: =(P196/$P$2)*100 -> 72.69671688 | R196: 14404.8 | S196: 19230 | T196: 5950 | U196: 12748 | V196: 131249
A197: 2009-04-09 | B197: 10.1 | C197: 103.0612245 | D197: 10.3 | E197: 13.8 | F197: 2.5 | G197: 7.4 | H197: 79.2 | I197: 435.5 | J197: 83.25367998 | K197: 292.5 | L197: 405.9 | M197: 98 | N197: 246.3 | O197: 2738.5 | P197: 11957 | Q197: 71.76640058 | R197: 14394.1 | S197: 19256 | T197: 6009 | U197: 12977 | V197: 131429
A198: 2009-05-09 | B198: 9.8 | C198: 100 | D198: 10.3 | E198: 13.8 | F198: 2.9 | G198: 7.7 | H198: 79.4 | I198: 431.7 | J198: 82.52724145 | K198: 296.9 | L198: 406.3 | M198: 105.7 | N198: 262 | O198: 2767.9 | P198: 11829 | Q198: 70.99813937 | R198: 14490 | S198: 19206 | T198: 6139 | U198: 13337 | V198: 131697
A199: 2009-06-09 | B199: 9.9 | C199: 101.0204082 | D199: 10.2 | E199: 13.8 | F199: 3.1 | G199: 7.7 | H199: 78.4 | I199: 434.2 | J199: 83.00516154 | K199: 299.8 | L199: 406.1 | M199: 109.5 | N199: 271.9 | O199: 2778.2 | P199: 11791 | Q199: 70.77006182 | R199: 14538 | S199: 18997 | T199: 6202 | U199: 13656 | V199: 131510
A200: 2009-07-09 | B200: 10.1 | C200: 103.0612245 | D200: 10.2 | E200: 13.7 | F200: 3.2 | G200: 7.9 | H200: 78.5 | I200: 432.1 | J200: 82.60370866 | K200: 297.8 | L200: 404.4 | M200: 110.8 | N200: 274 | O200: 2741.3 | P200: 11704 | Q200: 70.24788428 | R200: 14483.6 | S200: 18880 | T200: 6203 | U200: 13746 | V200: 129910
... 113 more rows

Sheet mnth-mnth_03-04
A1: ecch
A2: tnf_em | B2: jan | C2: feb | D2: mar | E2: apr | F2: may | G2: jun | H2: jul | I2: aug | J2: sep | K2: oct | L2: nov | M2: dec | N2: ytd_avg
A3: 2003 | B3: 73.8 | C3: 76 | D3: 75.8 | E3: 77 | F3: 78.2 | G3: 77.3 | H3: 77.1 | I3: 76.5 | J3: 77.7 | K3: 78.9 | L3: 78.9 | M3: 78.2 | N3: =AVERAGE(B3:M3) -> 77.11666667 | O3: =AVERAGE(B3:M3) -> 77.11666667
A4: 2004 | B4: 74.2 | C4: 76.4 | D4: 76.8 | E4: 78.1 | F4: 78.8 | G4: 78.2 | H4: 78.1 | I4: 77.4 | J4: 78.7 | K4: 79.3 | L4: 80.2 | M4: 79.4 | N4: 77.96666667 | O4: 77.96666667
A5: 2005 | B5: 76 | C5: 77.5 | D5: 78 | E5: 79.9 | F5: 80.7 | G5: 80.4 | H5: 80.4 | I5: 79.7 | J5: 81.2 | K5: 81.9 | L5: 82.1 | M5: 81.8 | N5: 79.96666667 | O5: 79.96666667
A6: 2006 | B6: 78.6 | C6: 80.2 | D6: 80.8 | E6: 82.6 | F6: 83.4 | G6: 82.7 | H6: 82.3 | I6: 82.1 | J6: 82.8 | K6: 83.5 | L6: 84.5 | M6: 84.2 | N6: 82.30833333 | O6: 82.30833333
A7: 2007 | B7: 81.2 | C7: 81.8 | D7: 81.9 | E7: 83.4 | F7: 84.3 | G7: 84 | H7: 83.9 | I7: 83.7 | J7: 84 | K7: 84.7 | L7: 85.2 | M7: 85.1 | N7: 83.6 | O7: 83.6
A8: 2008 | B8: 81.7 | C8: 82.5 | D8: 82.5 | E8: 83.6 | F8: 83.9 | G8: 83.1 | H8: 82.8 | I8: 81.6 | J8: 82.1 | K8: 82.4 | L8: 82.4 | M8: 81.7 | N8: 82.525 | O8: 82.525
A9: 2009 | B9: 77.2 | C9: 77.9 | D9: 77.9 | E9: 79.2 | F9: 79.4 | G9: 78.4 | H9: 78.5 | I9: 78.4 | J9: 79.1 | K9: 80.6 | L9: 80.7 | M9: 80 | N9: =AVERAGE(B9:M9) -> 78.94166667 | O9: 78.94166667
A10: 2010 | B10: 76.3 | C10: 77.9 | D10: 78.2 | E10: 79.9 | F10: 81.2 | G10: 80 | H10: 80 | I10: 80 | J10: 80.8 | K10: 81.1 | L10: 81.6 | M10: 81.6 | N10: 79.88333333 | O10: 79.88333333
A11: 2011 | B11: 77.5 | C11: 78.4 | D11: 79.6 | E11: 81 | F11: 81.9 | G11: 80 | H11: 79.9 | I11: 80.2 | J11: 82.9 | K11: 82.9 | L11: 83.3 | M11: 83.1 | N11: 80.89166667 | O11: 80.89166667
A12: 2012 | B12: 78.9 | C12: 81.3 | D12: 81.3 | E12: 82.8 | F12: 84.1 | G12: 82.2 | H12: 81.4 | I12: 81.4 | J12: 83.4 | K12: 83.7 | L12: 84.3 | M12: 83.3 | N12: 82.34166667 | O12: =AVERAGE(B12:M12) -> 82.34166667
A13: 2013 | B13: 79.1 | C13: 81.4 | D13: 81.5 | E13: 81.9 | F13: 82.9 | G13: 82.1 | H13: 81.1 | I13: 81.8 | J13: 83 | K13: 84.1 | L13: 84.8 | M13: 84.1 | N13: 82.31666667 | O13: =AVERAGE(B13:M13) -> 82.31666667
A14: 2014 | B14: 81 | C14: 81.4 | D14: 81.7 | E14: 82.4 | F14: 83.8 | G14: 83.1 | H14: 82.9 | I14: 83.5 | J14: 83.8 | K14: 85.1 | L14: 85.9 | M14: 85.4 | N14: 83.33333333 | O14: =AVERAGE(B14:M14) -> 83.33333333
A15: 2015 | N15: =AVERAGE(B15:B15) ->  | O15: =AVERAGE(B15:M15) -> 
B16: jan-dec | C16: feb-jan | D16: mar-feb | E16: apr-mar | F16: may-apr | G16: jun-may | H16: jul-jun | I16: aug-jul | J16: sep-aug | K16: oct-sep | L16: nov-oct | M16: dec-nov
A17: change_04 | B17: =B4-M3 -> -4 | C17: =C4-B4 -> 2.2 | D17: 0.4 | E17: 1.3 | F17: 0.7 | G17: -0.6 | H17: -0.1 | I17: -0.7 | J17: 1.3 | K17: 0.6 | L17: 0.9 | M17: -0.8
A18: %change_04 | B18: =(B17/M3)*100 -> -5.115089514 | C18: =(C17/B4)*100 -> 2.964959569 | D18: 0.5235602094 | E18: 1.692708333 | F18: 0.8962868118 | G18: -0.7614213198 | H18: -0.1278772379 | I18: -0.8962868118 | J18: 1.679586563 | K18: 0.7623888183 | L18: 1.134930643 | M18: -0.9975062344
B19: jan | C19: feb | D19: mar | E19: apr | F19: may | G19: jun | H19: jul | I19: aug | J19: sep | K19: oct | L19: nov | M19: dec | N19: ytd_avg_total
A20: chg_prv_04-03 | B20: =B4-B3 -> 0.4 | C20: 0.4 | D20: 1 | E20: 1.1 | F20: 0.6 | G20: 0.9 | H20: 1 | I20: 0.9 | J20: 1 | K20: 0.4 | L20: 1.3 | M20: 1.2 | N20: =O4-O3 -> 0.85
A21: %chg_prv_04-03 | B21: =(B20/B3)*100 -> 0.5420054201 | C21: 0.5263157895 | D21: 1.319261214 | E21: 1.428571429 | F21: 0.7672634271 | G21: 1.164294955 | H21: 1.297016861 | I21: 1.176470588 | J21: 1.287001287 | K21: 0.5069708492 | L21: 1.64765526 | M21: 1.534526854 | N21: =(N20/O3)*100 -> 1.102226064
B23: jan-dec | C23: feb-jan | D23: mar-feb | E23: apr-mar | F23: may-apr | G23: jun-may | H23: jul-jun | I23: aug-jul | J23: sep-aug | K23: oct-sep | L23: nov-oct | M23: dec-nov
A24: change_05 | B24: =B5-M4 -> -3.4 | C24: =C5-B5 -> 1.5 | D24: 0.5 | E24: 1.9 | F24: 0.8 | G24: -0.3 | H24: 0 | I24: -0.7 | J24: 1.5 | K24: 0.7 | L24: 0.2 | M24: -0.3
A25: %change_05 | B25: =(B24/M4)*100 -> -4.282115869 | C25: =(C24/B5)*100 -> 1.973684211 | D25: 0.6451612903 | E25: 2.435897436 | F25: 1.001251564 | G25: -0.3717472119 | H25: 0 | I25: -0.8706467662 | J25: 1.882057716 | K25: 0.8620689655 | L25: 0.2442002442 | M25: -0.365408039
B26: jan | C26: feb | D26: mar | E26: apr | F26: may | G26: jun | H26: jul | I26: aug | J26: sep | K26: oct | L26: nov | M26: dec | N26: ytd_avg_total
A27: chg_prv_05-04 | B27: =B5-B4 -> 1.8 | C27: 1.1 | D27: 1.2 | E27: 1.8 | F27: 1.9 | G27: 2.2 | H27: 2.3 | I27: 2.3 | J27: 2.5 | K27: 2.6 | L27: 1.9 | M27: 2.4 | N27: =O5-O4 -> 2
A28: %chg_prv_05-04 | B28: =(B27/B4)*100 -> 2.425876011 | C28: 1.439790576 | D28: 1.5625 | E28: 2.304737516 | F28: 2.411167513 | G28: 2.813299233 | H28: 2.944942382 | I28: 2.971576227 | J28: 3.176620076 | K28: 3.278688525 | L28: 2.369077307 | M28: 3.022670025 | N28: =(N27/O4)*100 -> 2.565198803
B30: jan-dec | C30: feb-jan | D30: mar-feb | E30: apr-mar | F30: may-apr | G30: jun-may | H30: jul-jun | I30: aug-jul | J30: sep-aug | K30: oct-sep | L30: nov-oct | M30: dec-nov
A31: change_06 | B31: =B6-M5 -> -3.2 | C31: =C6-B6 -> 1.6 | D31: 0.6 | E31: 1.8 | F31: 0.8 | G31: -0.7 | H31: -0.4 | I31: -0.2 | J31: 0.7 | K31: =K6-J6 -> 0.7 | L31: =L6-K6 -> 1 | M31: =M6-L6 -> -0.3
A32: %change_06 | B32: =(B31/M5)*100 -> -3.91198044 | C32: =(C31/B6)*100 -> 2.03562341 | D32: 0.7481296758 | E32: 2.227722772 | F32: 0.9685230024 | G32: -0.8393285372 | H32: -0.4836759371 | I32: -0.2430133657 | J32: 0.8526187576 | K32: 0.845410628 | L32: 1.19760479 | M32: -0.3550295858
B33: jan | C33: feb | D33: mar | E33: apr | F33: may | G33: jun | H33: jul | I33: aug | J33: sep | K33: oct | L33: nov | M33: dec | N33: ytd_avg_total
A34: chg_prv_06-05 | B34: =B6-B5 -> 2.6 | C34: 2.7 | D34: 2.8 | E34: 2.7 | F34: 2.7 | G34: 2.3 | H34: 1.9 | I34: =I6-I5 -> 2.4 | J34: =J6-J5 -> 1.6 | K34: =K6-K5 -> 1.6 | L34: =L6-L5 -> 2.4 | M34: =M6-M5 -> 2.4 | N34: =O6-O5 -> 2.341666667
A35: %chg_prv_06-05 | B35: =(B34/B5)*100 -> 3.421052632 | C35: 3.483870968 | D35: 3.58974359 | E35: 3.37922403 | F35: 3.345724907 | G35: 2.860696517 | H35: 2.36318408 | I35: 3.011292346 | J35: 1.97044335 | K35: 1.953601954 | L35: 2.923264312 | M35: 2.93398533 | N35: =(N34/O5)*100 -> 2.92830346
B37: jan-dec | C37: feb-jan | D37: mar-feb | E37: apr-mar | F37: may-apr | G37: jun-may | H37: jul-jun | I37: aug-jul | J37: sep-aug | K37: oct-sep | L37: nov-oct | M37: dec-nov
A38: change_07 | B38: =B7-M6 -> -3 | C38: =C7-B7 -> 0.6 | D38: 0.1 | E38: 1.5 | F38: 0.9 | G38: -0.3 | H38: -0.1 | I38: -0.2 | J38: 0.3 | K38: 0.7 | L38: 0.5 | M38: -0.1
A39: %change_07 | B39: =(B38/M6)*100 -> -3.562945368 | C39: =(C38/B7)*100 -> 0.7389162562 | D39: 0.1222493888 | E39: 1.831501832 | F39: 1.079136691 | G39: -0.3558718861 | H39: -0.119047619 | I39: -0.2383790226 | J39: 0.3584229391 | K39: 0.8333333333 | L39: 0.5903187721 | M39: -0.117370892
B40: jan | C40: feb | D40: mar | E40: apr | F40: may | G40: jun | H40: jul | I40: aug | J40: sep | K40: oct | L40: nov | M40: dec | N40: ytd_avg_total
A41: chg_prv_07-06 | B41: =B7-B6 -> 2.6 | C41: 1.6 | D41: 1.1 | E41: 0.8 | F41: 0.9 | G41: 1.3 | H41: 1.6 | I41: 1.6 | J41: =J7-J6 -> 1.2 | K41: =K7-K6 -> 1.2 | L41: =L7-L6 -> 0.7 | M41: =M7-M6 -> 0.9 | N41: =O7-O6 -> 1.291666667
A42: %chg_prv_07-06 | B42: =(B41/B6)*100 -> 3.307888041 | C42: 1.995012469 | D42: 1.361386139 | E42: 0.9685230024 | F42: 1.079136691 | G42: 1.571946796 | H42: 1.944106926 | I42: 1.948842875 | J42: =(J41/J6)*100 -> 1.449275362 | K42: =(K41/K6)*100 -> 1.437125749 | L42: =(L41/L6)*100 -> 0.8284023669 | M42: =(M41/M6)*100 -> 1.06888361 | N42: =(N41/O6)*100 -> 1.56930242
B44: jan-dec | C44: feb-jan | D44: mar-feb | E44: apr-mar | F44: may-apr | G44: jun-may | H44: jul-jun | I44: aug-jul | J44: sep-aug | K44: oct-sep | L44: nov-oct | M44: dec-nov
A45: change_08 | B45: =B8-M7 -> -3.4 | C45: =C8-B8 -> 0.8 | D45: 0 | E45: 1.1 | F45: 0.3 | G45: -0.8 | H45: -0.3 | I45: -1.2 | J45: 0.5 | K45: 0.3 | L45: 0 | M45: -0.7
A46: %change_08 | B46: =(B45/M7)*100 -> -3.995299647 | C46: =(C45/B8)*100 -> 0.9791921665 | D46: 0 | E46: 1.333333333 | F46: 0.3588516746 | G46: -0.9535160906 | H46: -0.3610108303 | I46: -1.449275362 | J46: 0.612745098 | K46: 0.365408039 | L46: 0 | M46: -0.8495145631
B47: jan | C47: feb | D47: mar | E47: apr | F47: may | G47: jun | H47: jul | I47: aug | J47: sep | K47: oct | L47: nov | M47: dec | N47: ytd_avg_total
A48: chg_prv_08-07 | B48: =B8-B7 -> 0.5 | C48: 0.7 | D48: 0.6 | E48: 0.2 | F48: -0.4 | G48: -0.9 | H48: -1.1 | I48: -2.1 | J48: -1.9 | K48: -2.3 | L48: -2.8 | M48: -3.4 | N48: =O8-O7 -> -1.075
A49: %chg_prv_08-07 | B49: =(B48/B7)*100 -> 0.6157635468 | C49: 0.8557457213 | D49: 0.7326007326 | E49: 0.2398081535 | F49: -0.4744958482 | G49: -1.071428571 | H49: -1.311084625 | I49: -2.508960573 | J49: -2.261904762 | K49: -2.715466352 | L49: -3.286384977 | M49: -3.995299647 | N49: =(N48/O7)*100 -> -1.285885167
B51: jan-dec | C51: feb-jan | D51: mar-feb | E51: apr-mar | F51: may-apr | G51: jun-may | H51: jul-jun | I51: aug-jul | J51: sep-aug | K51: oct-sep | L51: nov-oct | M51: dec-nov
A52: change_09 | B52: =B9-M8 -> -4.5 | C52: =C9-B9 -> 0.7 | D52: 0 | E52: 1.3 | F52: 0.2 | G52: -1 | H52: 0.1 | I52: -0.1 | J52: 0.7 | K52: 1.5 | L52: 0.1 | M52: -0.7
A53: %change_09 | B53: =(B52/M8)*100 -> -5.507955936 | C53: =(C52/B9)*100 -> 0.9067357513 | D53: 0 | E53: 1.668806162 | F53: 0.2525252525 | G53: -1.259445844 | H53: 0.1275510204 | I53: -0.127388535 | J53: 0.8928571429 | K53: 1.896333755 | L53: 0.1240694789 | M53: -0.8674101611
B54: jan | C54: feb | D54: mar | E54: apr | F54: may | G54: jun | H54: jul | I54: aug | J54: sep | K54: oct | L54: nov | M54: dec | N54: ytd_avg_total
A55: chg_prv_09-08 | B55: =B9-B8 -> -4.5 | C55: -4.6 | D55: -4.6 | E55: -4.4 | F55: -4.5 | G55: -4.7 | H55: -4.3 | I55: =I9-I8 -> -3.2 | J55: =J9-J8 -> -3 | K55: =K9-K8 -> -1.8 | L55: =L9-L8 -> -1.7 | M55: =M9-M8 -> -1.7 | N55: =O9-O8 -> -3.583333333
A56: %chg_prv_09-08 | B56: =(B55/B8)*100 -> -5.507955936 | C56: -5.575757576 | D56: -5.575757576 | E56: -5.263157895 | F56: -5.36352801 | G56: -5.655836342 | H56: -5.193236715 | I56: -3.921568627 | J56: -3.65408039 | K56: -2.184466019 | L56: -2.063106796 | M56: -2.080783354 | N56: =(N55/O8)*100 -> -4.34211855
B58: jan-dec | C58: feb-jan | D58: mar-feb | E58: apr-mar | F58: may-apr | G58: jun-may | H58: jul-jun | I58: aug-jul | J58: sep-aug | K58: oct-sep | L58: nov-oct | M58: dec-nov
A59: change_10 | B59: =B10-M9 -> -3.7 | C59: =C10-B10 -> 1.6 | D59: 0.3 | E59: 1.7 | F59: 1.3 | G59: -1.2 | H59: 0 | I59: 0 | J59: 0.8 | K59: 0.3 | L59: 0.5 | M59: 0
A60: %change_10 | B60: =(B59/M9)*100 -> -4.625 | C60: =(C59/B10)*100 -> 2.096985583 | D60: 0.3851091142 | E60: 2.173913043 | F60: 1.627033792 | G60: -1.477832512 | H60: 0 | I60: 0 | J60: 1 | K60: 0.3712871287 | L60: 0.6165228113 | M60: 0
B61: jan | C61: feb | D61: mar | E61: apr | F61: may | G61: jun | H61: jul | I61: aug | J61: sep | K61: oct | L61: nov | M61: dec | N61: ytd_avg_total
A62: chg_prv_10-09 | B62: =B10-B9 -> -0.9 | C62: 0 | D62: 0.3 | E62: 0.7 | F62: 1.8 | G62: 1.6 | H62: =H10-H9 -> 1.5 | I62: 1.6 | J62: 1.7 | K62: 0.5 | L62: 0.9 | M62: 1.6 | N62: =O10-O9 -> 0.9416666667
A63: %chg_prv_10-09 | B63: =(B62/B9)*100 -> -1.165803109 | C63: 0 | D63: 0.3851091142 | E63: 0.8838383838 | F63: 2.267002519 | G63: 2.040816327 | H63: =(H62/H9)*100 -> 1.910828025 | I63: 2.040816327 | J63: 2.149178255 | K63: 0.6203473945 | L63: 1.115241636 | M63: 2 | N63: =(N62/O9)*100 -> 1.192863929
B65: jan-dec | C65: feb-jan | D65: mar-feb | E65: apr-mar | F65: may-apr | G65: jun-may | H65: jul-jun | I65: aug-jul | J65: sep-aug | K65: oct-sep | L65: nov-oct | M65: dec-nov
A66: change_11 | B66: =B11-M10 -> -4.1 | C66: =C11-B11 -> 0.9 | D66: 1.2 | E66: 1.4 | F66: 0.9 | G66: -1.9 | H66: -0.1 | I66: 0.3 | J66: 2.7 | K66: 0 | L66: 0.4 | M66: -0.2
A67: %change_11 | B67: =(B66/M10)*100 -> -5.024509804 | C67: =(C66/B11)*100 -> 1.161290323 | D67: 1.530612245 | E67: 1.75879397 | F67: 1.111111111 | G67: -2.31990232 | H67: -0.125 | I67: 0.3754693367 | J67: 3.366583541 | K67: 0 | L67: 0.482509047 | M67: -0.2400960384
B68: jan | C68: feb | D68: mar | E68: apr | F68: may | G68: jun | H68: jul | I68: aug | J68: sep | K68: oct | L68: nov | M68: dec | N68: ytd_avg_total
A69: chg_prv_11-10 | B69: =B11-B10 -> 1.2 | C69: 0.5 | D69: 1.4 | E69: 1.1 | F69: 0.7 | G69: 0 | H69: =H11-H10 -> -0.1 | I69: 0.2 | J69: 2.1 | K69: 1.8 | L69: 1.7 | M69: 1.5 | N69: =O11-O10 -> 1.008333333
A70: %chg_prv_11-10 | B70: =(B69/B10)*100 -> 1.572739187 | C70: 0.6418485237 | D70: 1.79028133 | E70: 1.376720901 | F70: 0.8620689655 | G70: 0 | H70: =(H69/H10)*100 -> -0.125 | I70: 0.25 | J70: 2.599009901 | K70: 2.219482121 | L70: 2.083333333 | M70: 1.838235294 | N70: =(N69/O10)*100 -> 1.262257459
B72: jan-dec | C72: feb-jan | D72: mar-feb | E72: apr-mar | F72: may-apr | G72: jun-may | H72: jul-jun | I72: aug-jul | J72: sep-aug | K72: oct-sep | L72: nov-oct | M72: dec-nov
A73: change_12 | B73: =B12-M11 -> -4.2 | C73: =C12-B12 -> 2.4 | D73: 0 | E73: 1.5 | F73: 1.3 | G73: -1.9 | H73: -0.8 | I73: 0 | J73: 2 | K73: 0.3 | L73: 0.6 | M73: -1
A74: %change_12 | B74: =(B73/M11)*100 -> -5.054151625 | C74: =(C73/B12)*100 -> 3.041825095 | D74: 0 | E74: 1.84501845 | F74: 1.570048309 | G74: -2.25921522 | H74: -0.9732360097 | I74: 0 | J74: 2.457002457 | K74: 0.3597122302 | L74: 0.7168458781 | M74: -1.18623962
B75: jan | C75: feb | D75: mar | E75: apr | F75: may | G75: jun | H75: jul | I75: aug | J75: sep | K75: oct | L75: nov | M75: dec | N75: ytd_avg_total
A76: chg_prv_12-11 | B76: =B12-B11 -> 1.4 | C76: 2.9 | D76: 1.7 | E76: 1.8 | F76: 2.2 | G76: 2.2 | H76: =H12-H11 -> 1.5 | I76: 1.2 | J76: =J12-J11 -> 0.5 | K76: 0.8 | L76: =L12-L11 -> 1 | M76: 0.2 | N76: =O12-O11 -> 1.45
A77: %chg_prv_12-11 | B77: =(B76/B11)*100 -> 1.806451613 | C77: 3.698979592 | D77: 2.135678392 | E77: 2.222222222 | F77: 2.686202686 | G77: 2.75 | H77: =(H76/H11)*100 -> 1.877346683 | I77: 1.496259352 | J77: =(J76/J11)*100 -> 0.6031363088 | K77: 0.9650180941 | L77: =(L76/L11)*100 -> 1.200480192 | M77: 0.2406738869 | N77: =(N76/O11)*100 -> 1.792520861
B79: jan-dec | C79: feb-jan | D79: mar-feb | E79: apr-mar | F79: may-apr | G79: jun-may | H79: jul-jun | I79: aug-jul | J79: sep-aug | K79: oct-sep | L79: nov-oct | M79: dec-nov
A80: change_13 | B80: =B13-M12 -> -4.2 | C80: =C13-B13 -> 2.3 | D80: 0.1 | E80: 0.4 | F80: 1 | G80: -0.8 | H80: -1 | I80: 0.7 | J80: 1.2 | K80: 1.1 | L80: 0.7 | M80: -0.7
A81: %change_13 | B81: =(B80/M12)*100 -> -5.042016807 | C81: =(C80/B13)*100 -> 2.907711757 | D81: 0.1228501229 | E81: 0.490797546 | F81: 1.221001221 | G81: -0.9650180941 | H81: -1.218026797 | I81: 0.8631319359 | J81: 1.466992665 | K81: 1.325301205 | L81: 0.8323424495 | M81: -0.8254716981
B82: jan | C82: feb | D82: mar | E82: apr | F82: may | G82: jun | H82: jul | I82: aug | J82: sep | K82: oct | L82: nov | M82: dec | N82: ytd_avg_total
A83: chg_prv_13-12 | B83: =B13-B12 -> 0.2 | C83: 0.1 | D83: 0.2 | E83: -0.9 | F83: -1.2 | G83: -0.1 | H83: -0.3 | I83: 0.4 | J83: -0.4 | K83: 0.4 | L83: 0.5 | M83: 0.8 | N83: =O13-O12 -> -0.025
A84: %chg_prv_13-12 | B84: =(B83/B12)*100 -> 0.2534854246 | C84: 0.12300123 | D84: 0.24600246 | E84: -1.086956522 | F84: -1.426872771 | G84: -0.1216545012 | H84: -0.3685503686 | I84: 0.4914004914 | J84: -0.479616307 | K84: 0.4778972521 | L84: 0.5931198102 | M84: 0.9603841537 | N84: =(N83/O12)*100 -> -0.03036129946
B86: jan-dec | C86: feb-jan | D86: mar-feb | E86: apr-mar | F86: may-apr | G86: jun-may | H86: jul-jun | I86: aug-jul | J86: sep-aug | K86: oct-sep | L86: nov-oct | M86: dec-nov
A87: change_14 | B87: =B14-M13 -> -3.1 | C87: =C14-B14 -> 0.4 | D87: 0.3 | E87: 0.7 | F87: 1.4 | G87: -0.7 | H87: -0.2 | I87: 0.6 | J87: 0.3 | K87: 1.3 | L87: 0.8 | M87: -0.5
A88: %change_14 | B88: =(B87/M13)*100 -> -3.68608799 | C88: =(C87/B14)*100 -> 0.4938271605 | D88: 0.3685503686 | E88: 0.8567931457 | F88: 1.699029126 | G88: -0.8353221957 | H88: -0.2406738869 | I88: 0.7237635706 | J88: 0.3592814371 | K88: 1.551312649 | L88: 0.9400705053 | M88: -0.5820721769
B89: jan | C89: feb | D89: mar | E89: apr | F89: may | G89: jun | H89: jul | I89: aug | J89: sep | K89: oct | L89: nov | M89: dec | N89: ytd_avg_total
A90: chg_prv_14-13 | B90: =B14-B13 -> 1.9 | C90: 0 | D90: 0.2 | E90: 0.5 | F90: 0.9 | G90: 1 | H90: 1.8 | I90: 1.7 | J90: 0.8 | K90: 1 | L90: 1.1 | M90: 1.3 | N90: =O14-O13 -> 1.016666667
A91: %chg_prv_14-13 | B91: =(B90/B13)*100 -> 2.402022756 | C91: 0 | D91: 0.245398773 | E91: 0.6105006105 | F91: 1.085645356 | G91: 1.218026797 | H91: 2.219482121 | I91: 2.078239609 | J91: 0.9638554217 | K91: 1.189060642 | L91: 1.297169811 | M91: 1.545778835 | N91: =(N90/O13)*100 -> 1.235067827
B93: jan-dec | C93: feb-jan | D93: mar-feb | E93: apr-mar | F93: may-apr | G93: jun-may | H93: jul-jun | I93: aug-jul | J93: sep-aug | K93: oct-sep | L93: nov-oct | M93: dec-nov
A94: change_15
A95: %change_15
B96: jan | C96: feb | D96: mar | E96: apr | F96: may | G96: jun | H96: jul | I96: aug | J96: sep | K96: oct | L96: nov | M96: dec | N96: ytd_avg_total
A97: chg_prv_15-14 | N97: =N15-N14 -> 
A98: %chg_prv_15-14 | N98: =(N97/N14)*100 -> 
A101: m_em | B101: jan | C101: feb | D101: mar | E101: apr | F101: may | G101: jun | H101: jul | I101: aug | J101: sep | K101: oct | L101: nov | M101: dec | N101: ytd_avg
A102: 2003 | B102: 11.1 | C102: 11 | D102: 11 | E102: 10.9 | F102: 10.9 | G102: 10.9 | H102: 10.9 | I102: 10.8 | J102: 10.7 | K102: 10.6 | L102: 10.4 | M102: 10.4 | N102: =AVERAGE(B102:M102) -> 10.8 | O102: =AVERAGE(B102:M102) -> 10.8
A103: 2004 | B103: 10.1 | C103: 10.2 | D103: 10.3 | E103: 10.3 | F103: 10.4 | G103: 10.6 | H103: 10.7 | I103: 10.7 | J103: 10.7 | K103: 10.6 | L103: 10.5 | M103: 10.5 | N103: 10.46666667 | O103: 10.46666667
A104: 2005 | B104: 10.3 | C104: 10.5 | D104: 10.6 | E104: 10.7 | F104: 10.8 | G104: 11.1 | H104: 11.2 | I104: 11.3 | J104: 11.3 | K104: 11.3 | L104: 11.3 | M104: 11.4 | N104: 10.98333333 | O104: 10.98333333
A105: 2006 | B105: 11.2 | C105: 11.4 | D105: 11.4 | E105: 11.5 | F105: 11.4 | G105: 11.6 | H105: 11.7 | I105: 11.7 | J105: 11.4 | K105: 11.5 | L105: 11.5 | M105: 11.5 | N105: 11.48333333 | O105: 11.48333333
A106: 2007 | B106: 11.3 | C106: 11.4 | D106: 11.1 | E106: 11.2 | F106: 11.1 | G106: 11.4 | H106: 11.3 | I106: 11.3 | J106: 11.1 | K106: 11.1 | L106: 11.1 | M106: 11.1 | N106: 11.20833333 | O106: 11.20833333
A107: 2008 | B107: 11 | C107: 11.1 | D107: 11.1 | E107: 11.2 | F107: 11.2 | G107: 11.2 | H107: 11.2 | I107: 11.1 | J107: 10.9 | K107: 10.9 | L107: 10.9 | M107: 10.6 | N107: 11.03333333 | O107: 11.03333333
A108: 2009 | B108: 10.5 | C108: 10.3 | D108: 10.1 | E108: 10.1 | F108: 9.8 | G108: 9.9 | H108: 10.1 | I108: 10 | J108: 9.9 | K108: 9.9 | L108: 9.8 | M108: 9.8 | N108: =AVERAGE(B108:M108) -> 10.01666667 | O108: 10.01666667
A109: 2010 | B109: 9.7 | C109: 9.8 | D109: 9.8 | E109: 10 | F109: 10.2 | G109: 10.4 | H109: 10.4 | I109: 10.4 | J109: 10.3 | K109: 10.3 | L109: 10.3 | M109: 10.3 | N109: 10.15833333 | O109: 10.15833333
A110: 2011 | B110: 10.3 | C110: 10.3 | D110: 10.4 | E110: 10.3 | F110: 10.4 | G110: 10.5 | H110: 10.6 | I110: 10.6 | J110: 10.5 | K110: 10.3 | L110: 10.4 | M110: 10.3 | N110: 10.40833333 | O110: 10.40833333
A111: 2012 | B111: 10.3 | C111: 10.3 | D111: 10.3 | E111: 10.4 | F111: 10.6 | G111: 10.7 | H111: 10.7 | I111: 10.7 | J111: 10.7 | K111: 10.5 | L111: 10.5 | M111: 10.5 | N111: 10.51666667 | O111: =AVERAGE(B111:M111) -> 10.51666667
A112: 2013 | B112: 10.3 | C112: 10.3 | D112: 10.3 | E112: 10.2 | F112: 10.3 | G112: 10.5 | H112: 10.6 | I112: 10.6 | J112: 10.4 | K112: 10.4 | L112: 10.4 | M112: 10.4 | N112: 10.39166667 | O112: =AVERAGE(B112:M112) -> 10.39166667
A113: 2014 | B113: 10.3 | C113: 10.3 | D113: 10.3 | E113: 10.4 | F113: 10.4 | G113: 10.6 | H113: 10.6 | I113: 10.6 | J113: 10.3 | K113: 10.3 | L113: 10.3 | M113: 10.3 | N113: 10.39166667 | O113: =AVERAGE(B113:M113) -> 10.39166667
A114: 2015 | N114: =AVERAGE(B114:B114) ->  | O114: =AVERAGE(B114:M114) -> 
B115: jan-dec | C115: feb-jan | D115: mar-feb | E115: apr-mar | F115: may-apr | G115: jun-may | H115: jul-jun | I115: aug-jul | J115: sep-aug | K115: oct-sep | L115: nov-oct | M115: dec-nov
A116: change_04 | B116: =B103-M102 -> -0.3 | C116: =C103-B103 -> 0.1 | D116: 0.1 | E116: 0 | F116: 0.1 | G116: 0.2 | H116: 0.1 | I116: 0 | J116: =J103-I103 -> 0 | K116: =K103-J103 -> -0.1 | L116: =L103-K103 -> -0.1 | M116: =M103-L103 -> 0
A117: %change_04 | B117: =(B116/M102)*100 -> -2.884615385 | C117: =(C116/B103)*100 -> 0.9900990099 | D117: 0.9803921569 | E117: 0 | F117: 0.9708737864 | G117: 1.923076923 | H117: 0.9433962264 | I117: 0 | J117: 0 | K117: -0.9345794393 | L117: -0.9433962264 | M117: 0
B118: jan | C118: feb | D118: mar | E118: apr | F118: may | G118: jun | H118: jul | I118: aug | J118: sep | K118: oct | L118: nov | M118: dec | N118: ytd_avg_total
A119: chg_prv_04-03 | B119: =B103-B102 -> -1 | C119: -0.8 | D119: -0.7 | E119: -0.6 | F119: -0.5 | G119: -0.3 | H119: -0.2 | I119: -0.1 | J119: 0 | K119: 0 | L119: 0.1 | M119: 0.1 | N119: =O103-O102 -> -0.3333333333
A120: %chg_prv_04-03 | B120: =(B119/B102)*100 -> -9.009009009 | C120: -7.272727273 | D120: -6.363636364 | E120: -5.504587156 | F120: -4.587155963 | G120: -2.752293578 | H120: -1.834862385 | I120: -0.9259259259 | J120: 0 | K120: 0 | L120: 0.9615384615 | M120: 0.9615384615 | N120: =(N119/O102)*100 -> -3.086419753
B122: jan-dec | C122: feb-jan | D122: mar-feb | E122: apr-mar | F122: may-apr | G122: jun-may | H122: jul-jun | I122: aug-jul | J122: sep-aug | K122: oct-sep | L122: nov-oct | M122: dec-nov
A123: change_05 | B123: =B104-M103 -> -0.2 | C123: =C104-B104 -> 0.2 | D123: 0.1 | E123: 0.1 | F123: 0.1 | G123: 0.3 | H123: 0.1 | I123: 0.1 | J123: 0 | K123: 0 | L123: 0 | M123: 0.1
A124: %change_05 | B124: =(B123/M103)*100 -> -1.904761905 | C124: =(C123/B104)*100 -> 1.941747573 | D124: 0.9523809524 | E124: 0.9433962264 | F124: 0.9345794393 | G124: 2.777777778 | H124: 0.9009009009 | I124: 0.8928571429 | J124: 0 | K124: 0 | L124: 0 | M124: 0.8849557522
B125: jan | C125: feb | D125: mar | E125: apr | F125: may | G125: jun | H125: jul | I125: aug | J125: sep | K125: oct | L125: nov | M125: dec | N125: ytd_avg_total
A126: chg_prv_05-04 | B126: =B104-B103 -> 0.2 | C126: 0.3 | D126: 0.3 | E126: 0.4 | F126: 0.4 | G126: 0.5 | H126: 0.5 | I126: 0.6 | J126: 0.6 | K126: 0.7 | L126: 0.8 | M126: 0.9 | N126: =O104-O103 -> 0.5166666667
A127: %chg_prv_05-04 | B127: =(B126/B103)*100 -> 1.98019802 | C127: 2.941176471 | D127: 2.912621359 | E127: 3.883495146 | F127: 3.846153846 | G127: 4.716981132 | H127: 4.672897196 | I127: 5.607476636 | J127: 5.607476636 | K127: 6.603773585 | L127: 7.619047619 | M127: 8.571428571 | N127: =(N126/O103)*100 -> 4.936305732
B129: jan-dec | C129: feb-jan | D129: mar-feb | E129: apr-mar | F129: may-apr | G129: jun-may | H129: jul-jun | I129: aug-jul | J129: sep-aug | K129: oct-sep | L129: nov-oct | M129: dec-nov
A130: change_06 | B130: =B105-M104 -> -0.2 | C130: =C105-B105 -> 0.2 | D130: 0 | E130: 0.1 | F130: -0.1 | G130: 0.2 | H130: 0.1 | I130: 0 | J130: -0.3 | K130: =K105-J105 -> 0.1 | L130: =L105-K105 -> 0 | M130: =M105-L105 -> 0
A131: %change_06 | B131: =(B130/M104)*100 -> -1.754385965 | C131: =(C130/B105)*100 -> 1.785714286 | D131: 0 | E131: 0.8771929825 | F131: -0.8695652174 | G131: 1.754385965 | H131: 0.8620689655 | I131: 0 | J131: -2.564102564 | K131: =(K130/J105)*100 -> 0.8771929825 | L131: =(L130/K105)*100 -> 0 | M131: =(M130/L105)*100 -> 0
B132: jan | C132: feb | D132: mar | E132: apr | F132: may | G132: jun | H132: jul | I132: aug | J132: sep | K132: oct | L132: nov | M132: dec | N132: ytd_avg_total
A133: chg_prv_06-05 | B133: =B105-B104 -> 0.9 | C133: 0.9 | D133: 0.8 | E133: 0.8 | F133: 0.6 | G133: 0.5 | H133: 0.5 | I133: =I105-I104 -> 0.4 | J133: =J105-J104 -> 0.1 | K133: =K105-K104 -> 0.2 | L133: =L105-L104 -> 0.2 | M133: =M105-M104 -> 0.1 | N133: =O105-O104 -> 0.5
A134: %chg_prv_06-05 | B134: =(B133/B104)*100 -> 8.737864078 | C134: 8.571428571 | D134: 7.547169811 | E134: 7.476635514 | F134: 5.555555556 | G134: 4.504504505 | H134: 4.464285714 | I134: 3.539823009 | J134: 0.8849557522 | K134: =(K133/K104)*100 -> 1.769911504 | L134: =(L133/L104)*100 -> 1.769911504 | M134: =(M133/M104)*100 -> 0.8771929825 | N134: =(N133/O104)*100 -> 4.552352049
B136: jan-dec | C136: feb-jan | D136: mar-feb | E136: apr-mar | F136: may-apr | G136: jun-may | H136: jul-jun | I136: aug-jul | J136: sep-aug | K136: oct-sep | L136: nov-oct | M136: dec-nov
A137: change_07 | B137: =B106-M105 -> -0.2 | C137: =C106-B106 -> 0.1 | D137: -0.3 | E137: 0.1 | F137: -0.1 | G137: 0.3 | H137: -0.1 | I137: 0 | J137: -0.2 | K137: 0 | L137: 0 | M137: 0
A138: %change_07 | B138: =(B137/M105)*100 -> -1.739130435 | C138: =(C137/B106)*100 -> 0.8849557522 | D138: -2.631578947 | E138: 0.9009009009 | F138: -0.8928571429 | G138: 2.702702703 | H138: -0.8771929825 | I138: 0 | J138: -1.769911504 | K138: 0 | L138: 0 | M138: 0
B139: jan | C139: feb | D139: mar | E139: apr | F139: may | G139: jun | H139: jul | I139: aug | J139: sep | K139: oct | L139: nov | M139: dec | N139: ytd_avg_total
A140: chg_prv_07-06 | B140: =B106-B105 -> 0.1 | C140: 0 | D140: -0.3 | E140: -0.3 | F140: -0.3 | G140: -0.2 | H140: -0.4 | I140: -0.4 | J140: =J106-J105 -> -0.3 | K140: =K106-K105 -> -0.4 | L140: =L106-L105 -> -0.4 | M140: =M106-M105 -> -0.4 | N140: =O106-O105 -> -0.275
A141: %chg_prv_07-06 | B141: =(B140/B105)*100 -> 0.8928571429 | C141: 0 | D141: -2.631578947 | E141: -2.608695652 | F141: -2.631578947 | G141: -1.724137931 | H141: -3.418803419 | I141: -3.418803419 | J141: =(J140/J105)*100 -> -2.631578947 | K141: =(K140/K105)*100 -> -3.47826087 | L141: =(L140/L105)*100 -> -3.47826087 | M141: =(M140/M105)*100 -> -3.47826087 | N141: =(N140/O105)*100 -> -2.394775036
B143: jan-dec | C143: feb-jan | D143: mar-feb | E143: apr-mar | F143: may-apr | G143: jun-may | H143: jul-jun | I143: aug-jul | J143: sep-aug | K143: oct-sep | L143: nov-oct | M143: dec-nov
A144: change_08 | B144: =B107-M106 -> -0.1 | C144: =C107-B107 -> 0.1 | D144: 0 | E144: 0.1 | F144: 0 | G144: 0 | H144: 0 | I144: -0.1 | J144: -0.2 | K144: 0 | L144: 0 | M144: -0.3
A145: %change_08 | B145: =(B144/M106)*100 -> -0.9009009009 | C145: =(C144/B107)*100 -> 0.9090909091 | D145: 0 | E145: 0.9009009009 | F145: 0 | G145: 0 | H145: 0 | I145: -0.8928571429 | J145: -1.801801802 | K145: 0 | L145: 0 | M145: -2.752293578
B146: jan | C146: feb | D146: mar | E146: apr | F146: may | G146: jun | H146: jul | I146: aug | J146: sep | K146: oct | L146: nov | M146: dec | N146: ytd_avg_total
A147: chg_prv_08-07 | B147: =B107-B106 -> -0.3 | C147: -0.3 | D147: 0 | E147: 0 | F147: 0.1 | G147: -0.2 | H147: -0.1 | I147: -0.2 | J147: -0.2 | K147: -0.2 | L147: -0.2 | M147: -0.5 | N147: =O107-O106 -> -0.175
A148: %chg_prv_08-07 | B148: =(B147/B106)*100 -> -2.654867257 | C148: -2.631578947 | D148: 0 | E148: 0 | F148: 0.9009009009 | G148: -1.754385965 | H148: -0.8849557522 | I148: -1.769911504 | J148: -1.801801802 | K148: -1.801801802 | L148: -1.801801802 | M148: -4.504504505 | N148: =(N147/O106)*100 -> -1.56133829
B150: jan-dec | C150: feb-jan | D150: mar-feb | E150: apr-mar | F150: may-apr | G150: jun-may | H150: jul-jun | I150: aug-jul | J150: sep-aug | K150: oct-sep | L150: nov-oct | M150: dec-nov
A151: change_09 | B151: =B108-M107 -> -0.1 | C151: =C108-B108 -> -0.2 | D151: -0.2 | E151: 0 | F151: -0.3 | G151: 0.1 | H151: 0.2 | I151: -0.1 | J151: -0.1 | K151: 0 | L151: -0.1 | M151: 0
A152: %change_09 | B152: =(B151/M107)*100 -> -0.9433962264 | C152: =(C151/B108)*100 -> -1.904761905 | D152: -1.941747573 | E152: 0 | F152: -2.97029703 | G152: 1.020408163 | H152: 2.02020202 | I152: -0.9900990099 | J152: -1 | K152: 0 | L152: -1.01010101 | M152: 0
B153: jan | C153: feb | D153: mar | E153: apr | F153: may | G153: jun | H153: jul | I153: aug | J153: sep | K153: oct | L153: nov | M153: dec | N153: ytd_avg_total
A154: chg_prv_09-08 | B154: =B108-B107 -> -0.5 | C154: -0.8 | D154: -1 | E154: -1.1 | F154: -1.4 | G154: -1.3 | H154: -1.1 | I154: -1.1 | J154: -1 | K154: -1 | L154: -1.1 | M154: -0.8 | N154: =O108-O107 -> -1.016666667
A155: %chg_prv_09-08 | B155: =(B154/B107)*100 -> -4.545454545 | C155: -7.207207207 | D155: -9.009009009 | E155: -9.821428571 | F155: -12.5 | G155: -11.60714286 | H155: -9.821428571 | I155: -9.90990991 | J155: -9.174311927 | K155: -9.174311927 | L155: -10.09174312 | M155: -7.547169811 | N155: =(N154/O107)*100 -> -9.214501511
B157: jan-dec | C157: feb-jan | D157: mar-feb | E157: apr-mar | F157: may-apr | G157: jun-may | H157: jul-jun | I157: aug-jul | J157: sep-aug | K157: oct-sep | L157: nov-oct | M157: dec-nov
A158: change_10 | B158: =B109-M108 -> -0.1 | C158: =C109-B109 -> 0.1 | D158: 0 | E158: 0.2 | F158: 0.2 | G158: 0.2 | H158: 0 | I158: 0 | J158: -0.1 | K158: 0 | L158: 0 | M158: 0
A159: %change_10 | B159: =(B158/M108)*100 -> -1.020408163 | C159: =(C158/B109)*100 -> 1.030927835 | D159: 0 | E159: 2.040816327 | F159: 2 | G159: 1.960784314 | H159: 0 | I159: 0 | J159: -0.9615384615 | K159: 0 | L159: 0 | M159: 0
B160: jan | C160: feb | D160: mar | E160: apr | F160: may | G160: jun | H160: jul | I160: aug | J160: sep | K160: oct | L160: nov | M160: dec | N160: ytd_avg_total
A161: chg_prv_10-09 | B161: =B109-B108 -> -0.8 | C161: -0.5 | D161: -0.3 | E161: -0.1 | F161: 0.4 | G161: 0.5 | H161: =H109-H108 -> 0.3 | I161: 0.4 | J161: 0.4 | K161: 0.4 | L161: 0.5 | M161: 0.5 | N161: =O109-O108 -> 0.1416666667
A162: %chg_prv_10-09 | B162: =(B161/B108)*100 -> -7.619047619 | C162: -4.854368932 | D162: -2.97029703 | E162: -0.9900990099 | F162: 4.081632653 | G162: 5.050505051 | H162: =(H161/H108)*100 -> 2.97029703 | I162: 4 | J162: 4.04040404 | K162: 4.04040404 | L162: 5.102040816 | M162: 5.102040816 | N162: =(N161/O108)*100 -> 1.414309484
B164: jan-dec | C164: feb-jan | D164: mar-feb | E164: apr-mar | F164: may-apr | G164: jun-may | H164: jul-jun | I164: aug-jul | J164: sep-aug | K164: oct-sep | L164: nov-oct | M164: dec-nov
A165: change_11 | B165: =B110-M109 -> 0 | C165: =C110-B110 -> 0 | D165: 0.1 | E165: -0.1 | F165: 0.1 | G165: 0.1 | H165: 0.1 | I165: 0 | J165: -0.1 | K165: -0.2 | L165: 0.1 | M165: -0.1
A166: %change_11 | B166: =(B165/M109)*100 -> 0 | C166: =(C165/B110)*100 -> 0 | D166: 0.9708737864 | E166: -0.9615384615 | F166: 0.9708737864 | G166: 0.9615384615 | H166: 0.9523809524 | I166: 0 | J166: -0.9433962264 | K166: -1.904761905 | L166: 0.9708737864 | M166: -0.9615384615
B167: jan | C167: feb | D167: mar | E167: apr | F167: may | G167: jun | H167: jul | I167: aug | J167: sep | K167: oct | L167: nov | M167: dec | N167: ytd_avg_total
A168: chg_prv_11-10 | B168: =B110-B109 -> 0.6 | C168: 0.5 | D168: 0.6 | E168: 0.3 | F168: 0.2 | G168: 0.1 | H168: =H110-H109 -> 0.2 | I168: 0.2 | J168: 0.2 | K168: 0 | L168: 0.1 | M168: 0 | N168: =O110-O109 -> 0.25
A169: %chg_prv_11-10 | B169: =(B168/B109)*100 -> 6.18556701 | C169: 5.102040816 | D169: 6.12244898 | E169: 3 | F169: 1.960784314 | G169: 0.9615384615 | H169: =(H168/H109)*100 -> 1.923076923 | I169: 1.923076923 | J169: 1.941747573 | K169: 0 | L169: 0.9708737864 | M169: 0 | N169: =(N168/O109)*100 -> 2.461033634
B171: jan-dec | C171: feb-jan | D171: mar-feb | E171: apr-mar | F171: may-apr | G171: jun-may | H171: jul-jun | I171: aug-jul | J171: sep-aug | K171: oct-sep | L171: nov-oct | M171: dec-nov
A172: change_12 | B172: =B111-M110 -> 0 | C172: =C111-B111 -> 0 | D172: 0 | E172: 0.1 | F172: 0.2 | G172: 0.1 | H172: 0 | I172: 0 | J172: 0 | K172: -0.2 | L172: 0 | M172: 0
A173: %change_12 | B173: =(B172/M110)*100 -> 0 | C173: =(C172/B111)*100 -> 0 | D173: 0 | E173: 0.9708737864 | F173: 1.923076923 | G173: 0.9433962264 | H173: 0 | I173: 0 | J173: 0 | K173: -1.869158879 | L173: 0 | M173: 0
B174: jan | C174: feb | D174: mar | E174: apr | F174: may | G174: jun | H174: jul | I174: aug | J174: sep | K174: oct | L174: nov | M174: dec | N174: ytd_avg_total
A175: chg_prv_12-11 | B175: =B111-B110 -> 0 | C175: 0 | D175: -0.1 | E175: 0.1 | F175: 0.2 | G175: 0.2 | H175: =H111-H110 -> 0.1 | I175: 0.1 | J175: =J111-J110 -> 0.2 | K175: 0.2 | L175: =L111-L110 -> 0.1 | M175: 0.2 | N175: =O111-O110 -> 0.1083333333
A176: %chg_prv_12-11 | B176: =(B175/B110)*100 -> 0 | C176: 0 | D176: -0.9615384615 | E176: 0.9708737864 | F176: 1.923076923 | G176: 1.904761905 | H176: =(H175/H110)*100 -> 0.9433962264 | I176: 0.9433962264 | J176: =(J175/J110)*100 -> 1.904761905 | K176: 1.941747573 | L176: =(L175/L110)*100 -> 0.9615384615 | M176: 1.941747573 | N176: =(N175/O110)*100 -> 1.040832666
B178: jan-dec | C178: feb-jan | D178: mar-feb | E178: apr-mar | F178: may-apr | G178: jun-may | H178: jul-jun | I178: aug-jul | J178: sep-aug | K178: oct-sep | L178: nov-oct | M178: dec-nov
A179: change_13 | B179: =B112-M111 -> -0.2 | C179: =C112-B112 -> 0 | D179: 0 | E179: -0.1 | F179: 0.1 | G179: 0.2 | H179: 0.1 | I179: 0 | J179: -0.2 | K179: 0 | L179: 0 | M179: 0
A180: %change_13 | B180: =(B179/M111)*100 -> -1.904761905 | C180: =(C179/B112)*100 -> 0 | D180: 0 | E180: -0.9708737864 | F180: 0.9803921569 | G180: 1.941747573 | H180: 0.9523809524 | I180: 0 | J180: -1.886792453 | K180: 0 | L180: 0 | M180: 0
B181: jan | C181: feb | D181: mar | E181: apr | F181: may | G181: jun | H181: jul | I181: aug | J181: sep | K181: oct | L181: nov | M181: dec | N181: ytd_avg_total
A182: chg_prv_13-12 | B182: =B112-B111 -> 0 | C182: 0 | D182: 0 | E182: -0.2 | F182: -0.3 | G182: -0.2 | H182: -0.1 | I182: -0.1 | J182: -0.3 | K182: -0.1 | L182: -0.1 | M182: -0.1 | N182: =O112-O111 -> -0.125
A183: %chg_prv_13-12 | B183: =(B182/B111)*100 -> 0 | C183: 0 | D183: 0 | E183: -1.923076923 | F183: -2.830188679 | G183: -1.869158879 | H183: -0.9345794393 | I183: -0.9345794393 | J183: -2.803738318 | K183: -0.9523809524 | L183: -0.9523809524 | M183: -0.9523809524 | N183: =(N182/O111)*100 -> -1.18858954
B185: jan-dec | C185: feb-jan | D185: mar-feb | E185: apr-mar | F185: may-apr | G185: jun-may | H185: jul-jun | I185: aug-jul | J185: sep-aug | K185: oct-sep | L185: nov-oct | M185: dec-nov
A186: change_14 | B186: =B113-M112 -> -0.1 | C186: =C113-B113 -> 0 | D186: 0 | E186: 0.1 | F186: 0 | G186: 0.2 | H186: 0 | I186: 0 | J186: -0.3 | K186: 0 | L186: 0 | M186: 0
A187: %change_14 | B187: =(B186/M112)*100 -> -0.9615384615 | C187: =(C186/B113)*100 -> 0 | D187: 0 | E187: 0.9708737864 | F187: 0 | G187: 1.923076923 | H187: 0 | I187: 0 | J187: -2.830188679 | K187: 0 | L187: 0 | M187: 0
B188: jan | C188: feb | D188: mar | E188: apr | F188: may | G188: jun | H188: jul | I188: aug | J188: sep | K188: oct | L188: nov | M188: dec | N188: ytd_avg_total
A189: chg_prv_14-13 | B189: =B113-B112 -> 0 | C189: 0 | D189: 0 | E189: 0.2 | F189: 0.1 | G189: 0.1 | H189: =H113-H112 -> 0 | I189: 0 | J189: =J113-J112 -> -0.1 | K189: -0.1 | L189: =L113-L112 -> -0.1 | M189: -0.1 | N189: =O113-O112 -> 0
A190: %chg_prv_14-13 | B190: =(B189/B112)*100 -> 0 | C190: 0 | D190: 0 | E190: 1.960784314 | F190: 0.9708737864 | G190: 0.9523809524 | H190: =(H189/H112)*100 -> 0 | I190: 0 | J190: =(J189/J112)*100 -> -0.9615384615 | K190: -0.9615384615 | L190: =(L189/L112)*100 -> -0.9615384615 | M190: -0.9615384615 | N190: =(N189/O112)*100 -> 0
B192: jan-dec | C192: feb-jan | D192: mar-feb | E192: apr-mar | F192: may-apr | G192: jun-may | H192: jul-jun | I192: aug-jul | J192: sep-aug | K192: oct-sep | L192: nov-oct | M192: dec-nov
A193: change_15
A194: %change_15
B195: jan | C195: feb | D195: mar | E195: apr | F195: may | G195: jun | H195: jul | I195: aug | J195: sep | K195: oct | L195: nov | M195: dec | N195: ytd_avg_total
A196: chg_prv_15-14 | N196: =N114-N113 -> 
A197: %chg_prv_15-14 | N197: =(N196/N113)*100 -> 
A200: rt_em | B200: jan | C200: feb | D200: mar | E200: apr | F200: may | G200: jun | H200: jul | I200: aug | J200: sep | K200: oct | L200: nov | M200: dec | N200: ytd_avg
A201: 2003 | B201: 10.2 | C201: 10 | D201: 9.9 | E201: 10.1 | F201: 10.3 | G201: 10.2 | H201: 10.2 | I201: 10.3 | J201: 10.5 | K201: 10.9 | L201: 11.2 | M201: 11.3 | N201: =AVERAGE(B201:M201) -> 10.425 | O201: =AVERAGE(B201:M201) -> 10.425
A202: 2004 | B202: 10.7 | C202: 10.6 | D202: 10.5 | E202: 10.6 | F202: 10.7 | G202: 10.8 | H202: 10.5 | I202: 10.6 | J202: 10.7 | K202: 10.7 | L202: 11.1 | M202: 11.2 | N202: 10.725 | O202: 10.725
A203: 2005 | B203: 10.6 | C203: 10.5 | D203: 10.5 | E203: 10.9 | F203: 11 | G203: 10.8 | H203: 10.8 | I203: 10.8 | J203: 10.9 | K203: 11 | L203: 11.4 | M203: 11.4 | N203: 10.88333333 | O203: 10.88333333
A204: 2006 | B204: 10.8 | C204: 10.7 | D204: 10.8 | E204: 10.9 | F204: 11 | G204: 10.9 | H204: 10.8 | I204: 10.8 | J204: 10.9 | K204: 11 | L204: 11.4 | M204: 11.5 | N204: 10.95833333 | O204: 10.95833333
A205: 2007 | B205: 11 | C205: 10.8 | D205: 10.8 | E205: 10.9 | F205: 11.1 | G205: 11 | H205: 10.9 | I205: 10.9 | J205: 10.9 | K205: 11 | L205: 11.2 | M205: 11.3 | N205: 10.98333333 | O205: 10.98333333
A206: 2008 | B206: 10.8 | C206: 10.8 | D206: 10.8 | E206: 10.7 | F206: 10.7 | G206: 10.6 | H206: 10.5 | I206: 10.5 | J206: 10.5 | K206: 10.7 | L206: 10.9 | M206: 11.1 | N206: 10.71666667 | O206: 10.71666667
A207: 2009 | B207: 10.4 | C207: 10.3 | D207: 10.3 | E207: 10.3 | F207: 10.3 | G207: 10.2 | H207: 10.2 | I207: 10.3 | J207: 10.2 | K207: 10.3 | L207: 10.6 | M207: 10.7 | N207: 10.34166667 | O207: 10.34166667
A208: 2010 | B208: 10.2 | C208: 10 | D208: 10.1 | E208: 10.1 | F208: 10.4 | G208: 10.3 | H208: 10.3 | I208: 10.3 | J208: 10.2 | K208: 10.5 | L208: 10.8 | M208: 10.8 | N208: =AVERAGE(B208:M208) -> 10.33333333 | O208: 10.33333333
A209: 2011 | B209: 10.2 | C209: 10.1 | D209: 10.1 | E209: 10.4 | F209: 10.6 | G209: 10.5 | H209: 10.5 | I209: 10.5 | J209: 10.5 | K209: 10.6 | L209: 11 | M209: 11.1 | N209: =AVERAGE(B209:M209) -> 10.50833333 | O209: 10.50833333
A210: 2012 | B210: 10.4 | C210: 10.4 | D210: 10.4 | E210: 10.6 | F210: 10.7 | G210: 10.6 | H210: 10.5 | I210: 10.6 | J210: 10.6 | K210: 10.7 | L210: 11.2 | M210: 11.2 | N210: =AVERAGE(B210:M210) -> 10.65833333 | O210: =AVERAGE(B210:M210) -> 10.65833333
A211: 2013 | B211: 10.5 | C211: 10.4 | D211: 10.5 | E211: 10.5 | F211: 10.6 | G211: 10.5 | H211: 10.5 | I211: 10.5 | J211: 10.5 | K211: 10.6 | L211: 11.1 | M211: 11.3 | N211: =AVERAGE(B211:M211) -> 10.625 | O211: =AVERAGE(B211:M211) -> 10.625
A212: 2014 | B212: 10.7 | C212: 10.5 | D212: 10.6 | E212: 10.6 | F212: 10.6 | G212: 10.4 | H212: 10.4 | I212: 10.4 | J212: 10.4 | K212: 10.6 | L212: 11.1 | M212: 11.3 | N212: =AVERAGE(B212:M212) -> 10.63333333 | O212: =AVERAGE(B212:M212) -> 10.63333333
A213: 2015 | N213: =AVERAGE(B213:B213) ->  | O213: =AVERAGE(B213:M213) -> 
B214: jan-dec | C214: feb-jan | D214: mar-feb | E214: apr-mar | F214: may-apr | G214: jun-may | H214: jul-jun | I214: aug-jul | J214: sep-aug | K214: oct-sep | L214: nov-oct | M214: dec-nov
A215: change_04 | B215: =B202-M201 -> -0.6 | C215: =C202-B202 -> -0.1 | D215: -0.1 | E215: 0.1 | F215: 0.1 | G215: 0.1 | H215: -0.3 | I215: 0.1 | J215: 0.1 | K215: 0 | L215: 0.4 | M215: 0.1
A216: %change_04 | B216: =(B215/M201)*100 -> -5.309734513 | C216: =(C215/B202)*100 -> -0.9345794393 | D216: -0.9433962264 | E216: 0.9523809524 | F216: 0.9433962264 | G216: 0.9345794393 | H216: -2.777777778 | I216: 0.9523809524 | J216: 0.9433962264 | K216: 0 | L216: 3.738317757 | M216: 0.9009009009
B217: jan | C217: feb | D217: mar | E217: apr | F217: may | G217: jun | H217: jul | I217: aug | J217: sep | K217: oct | L217: nov | M217: dec | N217: ytd_avg_total
A218: chg_prv_04-03 | B218: =B202-B201 -> 0.5 | C218: 0.6 | D218: 0.6 | E218: 0.5 | F218: 0.4 | G218: 0.6 | H218: 0.3 | I218: 0.3 | J218: 0.2 | K218: -0.2 | L218: -0.1 | M218: -0.1 | N218: =O202-O201 -> 0.3
A219: %chg_prv_04-03 | B219: =(B218/B201)*100 -> 4.901960784 | C219: 6 | D219: 6.060606061 | E219: 4.95049505 | F219: 3.883495146 | G219: 5.882352941 | H219: 2.941176471 | I219: 2.912621359 | J219: 1.904761905 | K219: -1.834862385 | L219: -0.8928571429 | M219: -0.8849557522 | N219: =(N218/O201)*100 -> 2.877697842
B221: jan-dec | C221: feb-jan | D221: mar-feb | E221: apr-mar | F221: may-apr | G221: jun-may | H221: jul-jun | I221: aug-jul | J221: sep-aug | K221: oct-sep | L221: nov-oct | M221: dec-nov
A222: change_05 | B222: =B203-M202 -> -0.6 | C222: =C203-B203 -> -0.1 | D222: 0 | E222: 0.4 | F222: 0.1 | G222: -0.2 | H222: 0 | I222: 0 | J222: 0.1 | K222: 0.1 | L222: 0.4 | M222: 0
A223: %change_05 | B223: =(B222/M202)*100 -> -5.357142857 | C223: =(C222/B203)*100 -> -0.9433962264 | D223: 0 | E223: 3.80952381 | F223: 0.9174311927 | G223: -1.818181818 | H223: 0 | I223: 0 | J223: 0.9259259259 | K223: 0.9174311927 | L223: 3.636363636 | M223: 0
B224: jan | C224: feb | D224: mar | E224: apr | F224: may | G224: jun | H224: jul | I224: aug | J224: sep | K224: oct | L224: nov | M224: dec | N224: ytd_avg_total
A225: chg_prv_05-04 | B225: =B203-B202 -> -0.1 | C225: -0.1 | D225: 0 | E225: 0.3 | F225: 0.3 | G225: 0 | H225: 0.3 | I225: 0.2 | J225: 0.2 | K225: 0.3 | L225: 0.3 | M225: 0.2 | N225: =O203-O202 -> 0.1583333333
A226: %chg_prv_05-04 | B226: =(B225/B202)*100 -> -0.9345794393 | C226: -0.9433962264 | D226: 0 | E226: 2.830188679 | F226: 2.803738318 | G226: 0 | H226: 2.857142857 | I226: 1.886792453 | J226: 1.869158879 | K226: 2.803738318 | L226: 2.702702703 | M226: 1.785714286 | N226: =(N225/O202)*100 -> 1.476301476
B228: jan-dec | C228: feb-jan | D228: mar-feb | E228: apr-mar | F228: may-apr | G228: jun-may | H228: jul-jun | I228: aug-jul | J228: sep-aug | K228: oct-sep | L228: nov-oct | M228: dec-nov
... 1639 more rows

Sheet graphs
AD1: employment
AD2: date | AE2: ecch | AF2: wi | AG2: us | AH2: ecch | AI2: wi | AJ2: us
AD3: 2007-01-01 | AE3: 81.2 | AF3: 2814.4 | AG3: 134952 | AH3: =(AE3/AE$3)*100 -> 100 | AI3: =(AF3/AF$3)*100 -> 100 | AJ3: 100
AD4: 2007-02-01 | AE4: 81.8 | AF4: 2810 | AG4: 135641 | AH4: =(AE4/AE$3)*100 -> 100.7389163 | AI4: 99.84366117 | AJ4: 100.5105519
AD5: 2007-03-01 | AE5: 81.9 | AF5: 2830 | AG5: 136533 | AH5: 100.862069 | AI5: 100.5542922 | AJ5: 101.1715277
AD6: 2007-04-01 | AE6: 83.4 | AF6: 2862.4 | AG6: 137335 | AH6: 102.7093596 | AI6: 101.7055145 | AJ6: 101.765813
AD7: 2007-05-01 | AE7: 84.3 | AF7: 2904.3 | AG7: 138277 | AH7: 103.817734 | AI7: 103.1942865 | AJ7: 102.463839
AD8: 2007-06-01 | AE8: 84 | AF8: 2942.8 | AG8: 138779 | AH8: 103.4482759 | AI8: 104.5622513 | AJ8: 102.8358231
AD9: 2007-07-01 | AE9: 83.9 | AF9: 2906.3 | AG9: 137379 | AH9: 103.3251232 | AI9: 103.2653496 | AJ9: 101.7984172
AD10: 2007-08-01 | AE10: 83.7 | AF10: 2907.7 | AG10: 137488 | AH10: 103.0788177 | AI10: 103.3150938 | AJ10: 101.8791867
AD11: 2007-09-01 | AE11: 84 | AF11: 2908 | AG11: 138046 | AH11: 103.4482759 | AI11: 103.3257533 | AJ11: 102.292667
AD12: 2007-10-02 | AE12: 84.7 | AF12: 2909.2 | AG12: 138786 | AH12: 104.3103448 | AI12: 103.3683911 | AJ12: 102.8410101
AD13: 2007-11-01 | AE13: 85.2 | AF13: 2910.5 | AG13: 139090 | AH13: 104.9261084 | AI13: 103.4145821 | AJ13: 103.0662754
AD14: 2007-12-01 | AE14: 85.1 | AF14: 2906.9 | AG14: 138875 | AH14: 104.8029557 | AI14: 103.2866686 | AJ14: 102.9069595
AD15: 2008-01-01 | AE15: 81.7 | AF15: 2828.3 | AG15: 135840 | AH15: 100.6157635 | AI15: 100.4938886 | AJ15: 100.6580117
AD16: 2008-02-01 | AE16: 82.5 | AF16: 2824 | AG16: 136356 | AH16: 101.6009852 | AI16: 100.3411029 | AJ16: 101.0403699
AD17: 2008-03-01 | AE17: 82.5 | AF17: 2836.9 | AG17: 136944 | AH17: 101.6009852 | AI17: 100.7994599 | AJ17: 101.4760804
AD18: 2008-04-01 | AE18: 83.4 | AF18: 2863.3 | AG18: 137543 | AH18: 102.7093596 | AI18: 101.7374929 | AJ18: 101.9199419
AD19: 2008-05-01 | AE19: 84.1 | AF19: 2903.7 | AG19: 138190 | AH19: 103.5714286 | AI19: 103.1729676 | AJ19: 102.3993716
AD20: 2008-06-01 | AE20: 83.4 | AF20: 2923.2 | AG20: 138451 | AH20: 102.7093596 | AI20: 103.8658329 | AJ20: 102.5927737
AD21: 2008-07-01 | AE21: 83.1 | AF21: 2886.7 | AG21: 137050 | AH21: 102.3399015 | AI21: 102.5689312 | AJ21: 101.5546268
AD22: 2008-08-01 | AE22: 82.2 | AF22: 2884.6 | AG22: 137002 | AH22: 101.2315271 | AI22: 102.494315 | AJ22: 101.5190586
AD23: 2008-09-01 | AE23: 82.5 | AF23: 2878 | AG23: 137119 | AH23: 101.6009852 | AI23: 102.2598067 | AJ23: 101.6057561
AD24: 2008-10-01 | AE24: 83.5 | AF24: 2892.1 | AG24: 137492 | AH24: 102.8325123 | AI24: 102.7608016 | AJ24: 101.8821507
AD25: 2008-11-01 | AE25: 83.6 | AF25: 2877.9 | AG25: 136882 | AH25: 102.955665 | AI25: 102.2562536 | AJ25: 101.4301381
AD26: 2008-12-01 | AE26: 83.2 | AF26: 2843.5 | AG26: 135917 | AH26: 102.4630542 | AI26: 101.0339682 | AJ26: 100.7150691
AD27: 2009-01-09 | AE27: 80.1 | AF27: 2753.8 | AG27: 132302 | AH27: 98.6453202 | AI27: 97.84678795 | AJ27: 98.03633885
AD28: 2009-02-09 | AE28: 80.5 | AF28: 2733.2 | AG28: 132138 | AH28: 99.13793103 | AI28: 97.11483798 | AJ28: 97.91481416
AD29: 2009-03-09 | AE29: 80.6 | AF29: 2723.5 | AG29: 132077 | AH29: 99.26108374 | AI29: 96.77018192 | AJ29: 97.8696129
AD30: 2009-04-09 | AE30: 81 | AF30: 2736 | AG30: 132336 | AH30: 99.75369458 | AI30: 97.21432632 | AJ30: 98.06153299
AD31: 2009-05-09 | AE31: 82.1 | AF31: 2774.5 | AG31: 132720 | AH31: 101.1083744 | AI31: 98.58229107 | AJ31: 98.34607861
AD32: 2009-06-09 | AE32: 80.9 | AF32: 2802.7 | AG32: 132625 | AH32: 99.63054187 | AI32: 99.58428084 | AJ32: 98.27568321
AD33: 2009-07-09 | AE33: 80.2 | AF33: 2775.9 | AG33: 131127 | AH33: 98.76847291 | AI33: 98.63203525 | AJ33: 97.1656589
AD34: 2009-08-09 | AE34: 80.4 | AF34: 2772 | AG34: 131046 | AH34: 99.01477833 | AI34: 98.49346219 | AJ34: 97.10563756
AD35: 2009-09-09 | AE35: 80.6 | AF35: 2755.3 | AG35: 131435 | AH35: 99.26108374 | AI35: 97.90008528 | AJ35: 97.3938882
AD36: 2009-10-09 | AE36: 81.2 | AF36: 2761 | AG36: 132143 | AH36: 100 | AI36: 98.10261512 | AJ36: 97.91851918
AD37: 2009-11-09 | AE37: 81.6 | AF37: 2751.2 | AG37: 132223 | AH37: 100.4926108 | AI37: 97.75440591 | AJ37: 97.97779951

Sheet Sheet1
A1: year | B1: us_man | C1: us_tot | D1: us_man% | F1: wi_man | G1: wi_tot | H1: wi_man% | J1: ec_man | K1: ec_hcsa | L1: ec_tot | M1: ec_man% | N1: ec_hcsa%
A2: 2000 | B2: =AVERAGE(data!P86:P96) -> 17269 | C2: =AVERAGE(data!V86:V96) -> 131742.3636 | D2: =(B2/C2)*100 -> 13.10816014 | F2: =AVERAGE(data!I86:I96) -> 594.6636364 | G2: =AVERAGE(data!O86:O96) -> 2831.881818 | H2: =(F2/G2)*100 -> 20.99888606 | J2: =AVERAGE(data!B86:B96) -> 12.79090909 | K2: =AVERAGE(data!E86:E96) -> 11.12727273 | L2: =AVERAGE(data!H86:H96) -> 76.67272727 | M2: =(J2/L2)*100 -> 16.68247569 | N2: =(K2/L2)*100 -> 14.51268674
A3: 2001 | B3: =AVERAGE(data!P98:P108) -> 16506.72727 | C3: =AVERAGE(data!V98:V108) -> 131948.2727 | D3: =(B3/C3)*100 -> 12.50999875 | F3: =AVERAGE(data!I98:I108) -> 562.2454545 | G3: =AVERAGE(data!O98:O108) -> 2815.290909 | H3: =(F3/G3)*100 -> 19.97113168 | J3: =AVERAGE(data!B98:B108) -> 12.11818182 | K3: =AVERAGE(data!E98:E108) -> 11.65454545 | L3: =AVERAGE(data!H98:H108) -> 76.71818182 | M3: =(J3/L3)*100 -> 15.79571039 | N3: =(K3/L3)*100 -> 15.19137339
A4: 2002 | B4: =AVERAGE(data!P110:P120) -> 15289.45455 | C4: =AVERAGE(data!V110:V120) -> 130395.6364 | D4: =(B4/C4)*100 -> 11.7254342 | F4: =AVERAGE(data!I110:I120) -> 528.9454545 | G4: =AVERAGE(data!O110:O120) -> 2780.272727 | H4: =(F4/G4)*100 -> 19.0249485 | J4: =AVERAGE(data!B110:B120) -> 11.37272727 | K4: =AVERAGE(data!E110:E120) -> 11.97272727 | L4: =AVERAGE(data!H110:H120) -> 76.33636364 | M4: =(J4/L4)*100 -> 14.89817792 | N4: =(K4/L4)*100 -> 15.68417292
A5: 2003 | B5: =AVERAGE(data!P122:P132) -> 14528.09091 | C5: =AVERAGE(data!#REF!) ->  | D5: =(B5/C5)*100 ->  | F5: =AVERAGE(data!I122:I132) -> 504.6909091 | G5: =AVERAGE(data!O122:O132) -> 2771.627273 | H5: =(F5/G5)*100 -> 18.20919119 | J5: =AVERAGE(data!B122:B132) -> 10.83636364 | K5: =AVERAGE(data!E122:E132) -> 12.38181818 | L5: =AVERAGE(data!H122:H132) -> 77.01818182 | M5: =(J5/L5)*100 -> 14.06987724 | N5: =(K5/L5)*100 -> 16.07648725
A6: 2004 | B6: =AVERAGE(data!P134:P144) -> 14316.18182 | C6: =AVERAGE(data!#REF!) ->  | D6: =(B6/C6)*100 ->  | F6: =AVERAGE(data!I134:I144) -> 502.5181818 | G6: =AVERAGE(data!O134:O144) -> 2801.381818 | H6: =(F6/G6)*100 -> 17.93822529 | J6: =AVERAGE(data!B134:B144) -> 10.46363636 | K6: =AVERAGE(data!E134:E144) -> 12.55454545 | L6: =AVERAGE(data!H134:H144) -> 77.83636364 | M6: =(J6/L6)*100 -> 13.44312077 | N6: =(K6/L6)*100 -> 16.12940902
A9: 2003-2000 | B9: =B5-B2 -> -2740.909091 | C9: =C5-C2 ->  | D9: =D5-D2 ->  | F9: =F5-F2 -> -89.97272727 | G9: -60.25454545 | H9: -2.789694873 | J9: -1.954545455 | K9: 1.254545455 | L9: 0.3454545455 | M9: -2.612598451 | N9: 1.563800508
A10: % | B10: =(B9/B2)*100 -> -15.87184603 | C10: =(C9/C2)*100 ->  | F10: =(F9/F2)*100 -> -15.13002003 | G10: =(G9/G2)*100 -> -2.127721046 | J10: =(J9/J2)*100 -> -15.28073916 | K10: =(K9/K2)*100 -> 11.2745098 | L10: =(L9/L2)*100 -> 0.4505572682
B11: =B9*1000 -> -2740909.091 | C11: =C9*1000 ->  | F11: =F9*1000 -> -89972.72727 | G11: =G9*1000 -> -60254.54545 | J11: =J9*1000 -> -1954.545455 | K11: =K9*1000 -> 1254.545455 | L11: =L9*1000 -> 345.4545455
A13: 2004-2003 | B13: =B6-B5 -> -211.9090909 | C13: =C6-C5 ->  | D13: =D6-D5 ->  | F13: =F6-F5 -> -2.172727273 | G13: 29.75454545 | H13: -0.2709658959 | J13: -0.3727272727 | K13: 0.1727272727 | L13: 0.8181818182 | M13: -0.6267564765 | N13: 0.05292176446
A14: % | B14: =(B13/B5)*100 -> -1.458616223 | C14: =(C13/C5)*100 ->  | F14: =(F13/F5)*100 -> -0.4305065206 | G14: =(G13/G5)*100 -> 1.073540651 | J14: =(J13/J5)*100 -> -3.439597315 | K14: =(K13/K5)*100 -> 1.395007342 | L14: =(L13/L5)*100 -> 1.062322946
B15: =B13*1000 -> -211909.0909 | C15: =C13*1000 ->  | F15: =F13*1000 -> -2172.727273 | G15: =G13*1000 -> 29754.54545 | J15: =J13*1000 -> -372.7272727 | K15: =K13*1000 -> 172.7272727 | L15: =L13*1000 -> 818.1818182

Sheet Sheet3
A1: Area | B1: Wisconsin | C1: Wisconsin | D1: Wisconsin | E1: Wisconsin | F1: Wisconsin | G1: Wisconsin | H1: Eau Claire, WI Metro SA | I1: Eau Claire, WI Metro SA | J1: Eau Claire, WI Metro SA | K1: Eau Claire, WI Metro SA | L1: Eau Claire, WI Metro SA | M1: Eau Claire, WI Metro SA
A2: Year | B2: 2010 | C2: 2010 | D2: 2010 | E2: 2010 | F2: 2010 | G2: 2010 | H2: 2010 | I2: 2010 | J2: 2010 | K2: 2010 | L2: 2010 | M2: 2010
A3: Series Code | B3: 0 | C3: 20000000 | D3: 30000000 | E3: 42000000 | F3: 65000000 | G3: 70000000 | H3: 0 | I3: 15000000 | J3: 30000000 | K3: 42000000 | L3: 65000000 | M3: 70000000
A4: Series Desc | B4: Total Nonfarm | C4: Construction | D4: Manufacturing | E4: Retail Trade | F4: Educational and Health Services | G4: Leisure and Hospitality | H4: Total Nonfarm | I4: Natural Resources and Mining and Construction | J4: Manufacturing | K4: Retail Trade | L4: Educational and Health Services | M4: Leisure and Hospitality
A5: Jan Emp | B5: 2642300 | C5: 80500 | D5: 416500 | E5: 289500 | F5: 415500 | G5: 231900 | H5: 76000 | I5: 2700 | J5: 9400 | K5: 10100 | L5: 13900 | M5: 7400
A6: Feb Emp | B6: 2650800 | C6: 81400 | D6: 415700 | E6: 281700 | F6: 417600 | G6: 232400 | H6: 77000 | I6: 2700 | J6: 9400 | K6: 9900 | L6: 13900 | M6: 7400
A7: Mar Emp | B7: 2655700 | C7: 82900 | D7: 416500 | E7: 280200 | F7: 417800 | G7: 235200 | H7: 77100 | I7: 2800 | J7: 9400 | K7: 9900 | L7: 13900 | M7: 7400

Sheet Sheet2
A1: Area | B1: Year | C1: Series Code | D1: Series Desc | E1: Jan Emp | F1: Feb Emp | G1: Mar Emp | H1: Apr Emp | I1: May Emp | J1: Jun Emp | K1: Jul Emp | L1: Aug Emp | M1: Sep Emp | N1: Oct Emp | O1: Nov Emp | P1: Dec Emp | Q1: Avg Ann Emp
A2: Wisconsin | B2: 2010 | C2: 0 | D2: Total Nonfarm | E2: 2642300 | F2: 2650800 | G2: 2655700
A3: Wisconsin | B3: 2010 | C3: 20000000 | D3: Construction | E3: 80500 | F3: 81400 | G3: 82900
A4: Wisconsin | B4: 2010 | C4: 30000000 | D4: Manufacturing | E4: 416500 | F4: 415700 | G4: 416500
A5: Wisconsin | B5: 2010 | C5: 42000000 | D5: Retail Trade | E5: 289500 | F5: 281700 | G5: 280200
A6: Wisconsin | B6: 2010 | C6: 65000000 | D6: Educational and Health Services | E6: 415500 | F6: 417600 | G6: 417800
A7: Wisconsin | B7: 2010 | C7: 70000000 | D7: Leisure and Hospitality | E7: 231900 | F7: 232400 | G7: 235200
A8: Eau Claire, WI Metro SA | B8: 2010 | C8: 0 | D8: Total Nonfarm | E8: 76000 | F8: 77000 | G8: 77100
A9: Eau Claire, WI Metro SA | B9: 2010 | C9: 15000000 | D9: Natural Resources and Mining and Construction | E9: 2700 | F9: 2700 | G9: 2800
A10: Eau Claire, WI Metro SA | B10: 2010 | C10: 30000000 | D10: Manufacturing | E10: 9400 | F10: 9400 | G10: 9400
A11: Eau Claire, WI Metro SA | B11: 2010 | C11: 42000000 | D11: Retail Trade | E11: 10100 | F11: 9900 | G11: 9900
A12: Eau Claire, WI Metro SA | B12: 2010 | C12: 65000000 | D12: Educational and Health Services | E12: 13900 | F12: 13900 | G12: 13900
A13: Eau Claire, WI Metro SA | B13: 2010 | C13: 70000000 | D13: Leisure and Hospitality | E13: 7400 | F13: 7400 | G13: 7400
